Cogmind - Beta 16.1 @@@ ROGUE MODE // 2026.03.23 @ 12:35:48 Player: EX-OCT Result: Destroyed by MAIN.C with Improved Heavy Machine Gun Performance ------------- Evolutions (9) 4500 Regions Visited (32) 6400 Robots Destroyed (213) 1065 Value Destroyed (11376) 11376 Prototype IDs (219) 4380 Alien Tech Used (5) 1000 Bonus (42478) 42478 TOTAL SCORE: 71199 Bonus ------- High Alert Combat Kills 2305 Follower Combat Kills 1514 Hunted by Unchained 1500 Destroyed Unchained 1000 Entered Garrisons 200 Used RIF Installer 500 Network Hubs Disabled 800 Registered with UFD 300 Met Optimus in HQ 500 Met Imprinter 300 Destroyed Z-Imprinter 1000 Built Enhanced Grunts 300 A7 Reached Mainframe 300 Met R17 at Cetus 500 Used Core Reset Matrix 3000 Met R17 at Research 2000 Destroyed Superfortress 15000 Met Optimus at Protoforge 1000 Destroyed MAIN.C Guards 500 Met MAIN.C 5000 Destroyed MAIN.C Shell 5000 Friendly Fire -41 Cogmind --------- Core Integrity 0/1600 Matter 292/300 Energy 222/1100 System Corruption 56% Temperature Cool (4) Movement Hovering (220) Ox4 Location -1/Command Parts ------- > --- POWER (3) -------- Singularity Reactor > --- PROPULSION (8) --- Concept Gyrokinetic System Concept Gyrokinetic System > --- UTILITY (12) ----- Concept Phasing Heat Sink Experimental Optical Array Concept Core Analysis Suite Femtoactuators Concept RG22 Armor > --- WEAPON (2) ------- Concept Plasma Driver > --- INVENTORY (5) ---- Concept Networked Targeting System Concept Weapon Articulator Concept Cloak Mesh Concept RG22 Armor Peak State ------------ > --- POWER ------------ Concept Zero-point Core Concept Zero-point Core Concept Zero-point Core > --- PROPULSION ------- Experimental Antigrav System Experimental Antigrav System Gravjet Array Concept Combat Aerolev Unit Concept Combat Aerolev Unit Concept Combat Aerolev Unit Concept Gyrokinetic System > --- UTILITY ---------- Concept Phasing Heat Sink Concept Antigrav Storage Unit Experimental Optical Array Concept Melee Reflex Suite Femtoactuators Concept Reaction Jets Concept RG22 Armor Concept RG22 Armor Concept RG22 Armor Graphene Brace Concept Energy Mantle Concept Network Penetrator > --- WEAPON ----------- Concept Deflector Sword Experimental Jetlance > --- INVENTORY -------- Hybrid Graviton Reactor Gravjet Array Concept Gyrokinetic System Concept Gyrokinetic System Concept Chromion Battery Zionite Metafield Generator Concept Networked Targeting System Concept Weapon Articulator Concept Core Analysis Suite Concept Core Analysis Suite Femtoactuators Experimental ECM Suite Concept Reaction Jets Concept Cloak Mesh Concept Cloak Mesh Concept Antimissile System Concept Antimissile System Concept Lightning Penetrator Concept Plasma Driver Concept Rapid Grenade Launcher [Rating: 303] Favorites ----------- Power Concept Zero-point Core Engine Light Angular Momentum Engine Power Core Concept Zero-point Core Reactor Compact Particle Reactor Propulsion Nuclear Pulse Thruster Treads Light Treads Hover Unit Concept Combat Aerolev Unit Flight Unit Nuclear Pulse Thruster Utility Advanced Signal Interpreter Device Advanced Sensor Array Storage Medium Storage Unit Processor Advanced Signal Interpreter Hackware Improved Hacking Suite Protection Concept RG22 Armor Weapon Improved Medium Laser Energy Gun Improved Medium Laser Energy Cannon Null Cannon Ballistic Gun Light Assault Rifle Ballistic Cannon Concept Helical Railcannon Launcher Long-range Missile Launcher Special Weapon Plasma Cutter Impact Weapon Heavy Hammer Slashing Weapon Molecular Scythe Piercing Weapon Experimental Jetlance Special Melee Weapon Improved Datajack Build | -11 -10 -10 -9 -9 -9 -9 -6 -6 -6 -6 -6 -6 -6 -5 -5 -5 -5 -5 -4 -4 -4 -4 -4 -4 -4 -3 -3 -2 -2 -2 -1 -1 ------- Run | Yrd Mat Min Mat Sto Rec Scr Fac Was Fac Low Low Zio Dee Pro Fac Was Fac Gar Fac Was Fac Ext Cet Arc Hub Res Tes Res Qua Frg Acc Com Slots Evolved 18 | . . . 2 . . . 6 . . . . . . . 2 . . . 2 . . . . . . 2 . 2 . . 2 . Power 2 | . . . . . . . . . . . . . . . 1 . . . . . . . . . . . . . . . 1 . Propulsion 6 | . . . 2 . . . 2 . . . . . . . . . . . . . . . . . . . . 2 . . . . Utility 10 | . . . . . . . 4 . . . . . . . 1 . . . 2 . . . . . . 2 . . . . 1 . Weapon . | . . . . . . . . . . . . . . . . . . . . . . . . . . . . . . . . . Parts Attached 293 | 7 6 2 16 14 1 3 27 1 12 . 3 4 14 4 12 1 15 8 8 . 8 9 2 5 4 18 5 5 3 62 3 11 Power 40 | 1 1 1 1 1 . . 3 . 2 . . . 1 . 2 . 2 3 1 . 2 2 1 2 1 4 1 1 . 4 2 1 Engine 13 | 1 1 1 1 1 . . 2 . . . . . . . 1 . 1 . 1 . . . . 2 1 . . . . . . . Core 16 | . . . . . . . 1 . 2 . . . . . 1 . 1 3 . . 1 2 . . . 1 . . . 3 1 . Reactor 11 | . . . . . . . . . . . . . 1 . . . . . . . 1 . 1 . . 3 1 1 . 1 1 1 Propulsion 98 | 2 . . 7 4 . 2 11 . 4 . 1 . 4 3 4 1 6 5 1 . 3 1 . . 1 5 1 1 1 24 . 6 Treads 4 | 2 . . . . . 1 . . . . . . . . . . . . . . . . . . . . . . . . . 1 Leg . | . . . . . . . . . . . . . . . . . . . . . . . . . . . . . . . . . Wheel . | . . . . . . . . . . . . . . . . . . . . . . . . . . . . . . . . . Hover 20 | . . . . . . . . . . . . . 4 . . . . . . . . . . . . . 1 . . 10 . 5 Flight 74 | . . . 7 4 . 1 11 . 4 . 1 . . 3 4 1 6 5 1 . 3 1 . . 1 5 . 1 1 14 . . Utility 101 | 2 2 . 3 5 1 . 10 1 5 . 2 1 3 . 4 . 6 . 4 . 3 5 . 3 1 8 1 1 2 23 1 4 Device 55 | 1 1 . 1 1 . . 3 1 4 . 1 . 2 . 3 . 3 . 2 . 3 . . 1 1 6 1 1 2 14 . 3 Storage 8 | 1 1 . . 1 . . . . 1 . . . . . . . . . . . . 2 . . . . . . . 2 . . Processor 13 | . . . . . . . 4 . . . 1 1 . . . . . . 1 . . . . . . 1 . . . 4 . 1 Hackware 11 | . . . . . 1 . 1 . . . . . 1 . 1 . 3 . 1 . . . . 2 . . . . . . 1 . Protection 14 | . . . 2 3 . . 2 . . . . . . . . . . . . . . 3 . . . 1 . . . 3 . . Artifact . | . . . . . . . . . . . . . . . . . . . . . . . . . . . . . . . . . Weapon 54 | 2 3 1 5 4 . 1 3 . 1 . . 3 6 1 2 . 1 . 2 . . 1 1 . 1 1 2 2 . 11 . . Energy Gun 7 | . 2 1 1 . . . . . . . . . 1 . . . . . . . . . . . . . . . . 2 . . Energy Cannon 4 | . . . . 1 . . . . . . . . . . . . . . . . . . . . . . 1 1 . 1 . . Ballistic Gun 9 | 2 . . 4 2 . . . . . . . . . . . . . . . . . . . . . . 1 . . . . . Ballistic Cannon 1 | . . . . . . . . . . . . . . . . . . . . . . . . . . . . . . 1 . . Launcher 7 | . 1 . . . . . 1 . 1 . . . . . . . . . . . . 1 . . . . . . . 3 . . Special Weapon 7 | . . . . 1 . . . . . . . 1 4 . . . . . . . . . . . 1 . . . . . . . Impact Weapon 1 | . . . . . . 1 . . . . . . . . . . . . . . . . . . . . . . . . . . Slashing Weapon 8 | . . . . . . . 1 . . . . 1 . 1 1 . 1 . 1 . . . . . . . . . . 2 . . Piercing Weapon 3 | . . . . . . . . . . . . 1 . . . . . . . . . . . . . . . . . 2 . . Special Melee Weapon 7 | . . . . . . . 1 . . . . . 1 . 1 . . . 1 . . . 1 . . 1 . 1 . . . . Unidentified Prototypes 14 | . 1 . 2 2 . . 3 1 . . . 1 . . . . . . . . . . . . . . . . 3 . . 1 Parts Lost 101 | . . 2 1 2 . . 10 . 5 1 2 . 2 3 6 . 8 . . . 6 7 . . 3 2 . 1 . 16 . 24 Power 13 | . . . . . . . 1 . . . . . . . 1 . 1 . . . 4 1 . . 1 1 . . . . . 3 Propulsion 43 | . . 1 1 . . . 4 . 3 . 2 . 2 2 5 . 5 . . . 1 1 . . . . . . . 6 . 10 Utility 33 | . . . . 2 . . 3 . 1 1 . . . . . . 1 . . . 1 4 . . 2 1 . 1 . 8 . 8 Weapon 12 | . . 1 . . . . 2 . 1 . . . . 1 . . 1 . . . . 1 . . . . . . . 2 . 3 Highest Loss Streak 17 | . . 1 1 1 . . 3 . 2 1 2 . 1 3 3 . 8 . . . 5 3 . . 2 1 . 1 . 5 . 17 To Critical Strikes . | . . . . . . . . . . . . . . . . . . . . . . . . . . . . . . . . . Average Backups 10 | . 9 14 6 8 10 9 9 8 9 10 9 9 9 10 10 10 9 9 8 10 9 9 9 9 8 9 9 9 9 14 20 14 Power . | . 1 1 . . . . . . . 1 1 1 . . . . . . . 1 . . . . . . 2 2 2 . 1 . Propulsion 1 | . 2 6 2 4 5 4 1 1 . 1 . . . . . . . . 1 2 2 1 1 1 1 1 2 . 1 2 3 1 Utility 5 | . 1 2 . . 1 1 3 5 5 4 4 2 4 6 6 7 6 6 4 4 3 4 4 3 3 4 4 3 3 9 13 9 Weapon 2 | . 3 3 1 2 3 2 1 . . 2 2 5 2 1 1 2 2 2 1 2 2 2 2 2 1 2 1 1 1 1 3 2 Tool/Special . | . . . . . . . . . . . . . . . . . . . . . . . . . . . . . . . . . Unused Backups 26 | . . 1 2 . . . 1 . 3 . . 1 . . . . . 1 . . . . . . 1 2 2 . . 9 . 3 Power 3 | . . . . . . . . . . . . . . . . . . . . . . . . . . . . . . 3 . . Propulsion 4 | . . . 1 . . . . . . . . . . . . . . . . . . . . . . . . . . 3 . . Utility 13 | . . 1 . . . . . . 3 . . 1 . . . . . . . . . . . . 1 . 1 . . 3 . 3 Weapon 5 | . . . 1 . . . 1 . . . . . . . . . . 1 . . . . . . . 1 1 . . . . . Tool/Special 1 | . . . . . . . . . . . . . . . . . . . . . . . . . . 1 . . . . . . Average Slot Usage (%) 89 | . 99 99 91 97 90 91 83 93 96 80 78 92 95 96 86 81 91 85 92 94 85 80 70 81 87 79 89 90 91 88 94 84 Engine 3 | . 14 14 11 11 11 11 1 6 1 . . . . . . 10 7 3 2 5 1 . . 5 10 1 . . . . . . Core 3 | . . . . . . . 2 . 4 6 6 6 1 . . . 2 4 7 5 4 5 9 2 . . . . . 6 11 10 Reactor 1 | . . . . . . . . . . . . . 4 6 3 . . . . . 2 3 . 1 . 5 9 8 8 1 . . Treads 3 | . 27 27 1 . . . . . . . . . . . . . . . . . . . . . . . . . . . . . Hover 5 | . . . . . . . . . . . . . 17 19 3 . . . . . . . . . . . . . . 21 28 23 Flight 19 | . . . 37 44 44 44 37 33 39 40 32 33 18 17 25 16 27 28 26 26 23 20 21 21 21 15 19 25 26 6 . . Device 13 | . 14 14 11 2 . . 3 13 14 6 9 7 6 6 5 5 9 11 10 10 13 11 9 12 13 17 23 22 26 20 27 20 Storage 6 | . 14 14 1 8 11 11 6 6 6 6 6 6 6 6 5 5 5 5 5 5 5 5 5 5 5 4 4 4 4 3 4 3 Processor 10 | . . . . . . . 14 13 9 6 9 18 20 20 17 17 12 11 14 15 15 14 10 10 10 11 14 13 13 14 8 10 Hackware 5 | . . . . . 7 11 6 6 6 6 6 6 6 6 9 11 11 11 15 15 10 4 . 5 10 9 9 6 4 2 3 1 Protection 1 | . . . 9 10 3 . 3 . . . . . . . . . . . . . . 6 5 5 5 2 . . . 2 4 9 Energy Gun 3 | . 27 28 3 . . . . . . . . . . . . . . . . . . . . . . . . . . . . . Ballistic Gun 1 | . . . 15 19 12 . . . . . . . . . . . . . . . . . . . . . . . . . . . Slashing Weapon 3 | . . . . . . . 1 6 6 6 6 6 3 7 5 5 5 4 5 5 5 6 5 5 5 4 3 4 4 2 1 2 Special Melee Weapon 1 | . . . . . . . . 6 4 . . . . . 4 5 4 . 3 5 1 1 2 5 2 3 3 3 4 . . . Peak Build Rating 303 | 7 14 19 20 25 23 27 58 64 66 52 55 63 92 89 79 72 89 87 105 105 113 116 91 105 118 137 153 177 176 289 302 303 Average Rating 105 | 5 12 18 12 19 20 20 45 58 59 51 49 62 80 81 73 71 81 76 102 105 105 104 88 97 106 122 141 166 174 232 301 260 On Entrance 85 | . 7 13 17 13 21 19 22 57 58 52 51 55 63 87 74 61 72 70 82 105 105 106 86 91 105 105 137 145 172 176 286 302 Avg Prop Armor Cover (%) 5 | 25 . . . . . . 7 . 3 4 . . 5 7 7 . . . . . 3 8 . . . . . 1 2 2 . 1 Naked Turns . | . . . . . . . . . . . . . . . . . . . . . . . . . . . . . . . . . Heaviest Build 111 | 13 32 36 36 20 20 17 28 25 32 21 21 24 38 34 32 20 28 30 32 32 36 42 41 41 42 42 43 50 52 103 111 111 Greatest Support 130 | 40 40 40 20 20 20 20 35 29 40 37 30 29 54 54 37 28 42 41 39 39 43 43 43 43 44 52 50 65 67 130 130 130 Greatest Overweight (x) 4 | 4 . 1 1 . . . 4 . . . . . 1 . 4 . 1 1 . . . . . . . . . . . 2 . 1 Average Overweight (x) . | 1 . . . . . . . . . . . . . . . . . . . . . . . . . . . . . . . . Largest Inventory Capacity 25 | 8 15 15 15 10 10 10 10 10 10 10 10 10 10 10 10 10 10 10 10 10 10 10 10 10 10 10 10 10 10 25 25 25 Average Capacity 12 | 7 12 15 6 9 10 10 10 10 10 10 10 10 10 10 10 10 10 10 10 10 10 10 10 10 10 10 10 10 10 18 25 20 Most Carried 25 | 1 13 15 15 10 10 10 10 9 10 10 10 10 10 10 10 10 10 10 10 10 10 10 10 10 10 10 10 10 10 25 24 21 Average Carried 11 | . 9 14 6 8 10 9 9 8 9 10 9 9 9 10 9 10 9 9 8 10 9 9 9 9 9 9 9 9 9 16 21 14 Final Capacity 25 | 8 15 15 5 10 10 10 10 10 10 10 10 10 10 10 10 10 10 10 10 10 10 10 10 10 10 10 10 10 10 25 25 5 Final Carried 24 | 1 13 15 5 10 10 10 8 9 10 10 9 10 10 10 10 10 9 10 10 10 10 10 9 10 9 10 10 10 10 24 21 4 Class Distribution -------------------- 21% | Sprinter 18% | Scavenger-Sprinter 15% | Mutant 7% | Infiltrator-Ninja 7% | Scavenger-Mutant 5% | Hacker-Sprinter 5% | Scavenger-Ninja 3% | Scavenger-Scout 3% | Gladiator 3% | Scout 3% | Trapper-Sprinter Dominant Class ---------------- Mutant | -10/Materials Mutant | -10/Mines Scavenger-Sprinter | -9/Materials Sprinter | -9/Storage Sprinter | -9/Recycling Sprinter | -9/Scraptown Sprinter | -6/Factory Ninja | -6/Waste Scout | -6/Factory Sprinter | -6/Lower Caves Sprinter | -6/Lower Caves Sprinter | -6/Zion Scavenger-Mutant | -6/Deep Caves Scavenger-Mutant | -5/Proximity Caves Scavenger-Sprinter | -5/Factory Scavenger-Sprinter | -5/Waste Hacker-Sprinter | -5/Factory Scavenger-Sprinter | -5/Garrison Scavenger-Scout | -4/Factory Scavenger-Scout | -4/Waste Hacker-Ninja | -4/Factory Hacker-Sprinter | -4/Extension Trapper-Sprinter | -4/Cetus Scavenger-Sprinter | -4/Archives Hacker-Scout | -4/Hub_04(d) Scavenger-Ninja | -3/Research Infiltrator-Ninja | -3/Testing Infiltrator-Ninja | -2/Research Infiltrator-Ninja | -2/Quarantine Scavenger-Sprinter | -2/Protoforge Hacker-Sprinter | -1/Access Gladiator | -1/Command Resources | -11 -10 -10 -9 -9 -9 -9 -6 -6 -6 -6 -6 -6 -6 -5 -5 -5 -5 -5 -4 -4 -4 -4 -4 -4 -4 -3 -3 -2 -2 -2 -1 -1 ----------- Run | Yrd Mat Min Mat Sto Rec Scr Fac Was Fac Low Low Zio Dee Pro Fac Was Fac Gar Fac Was Fac Ext Cet Arc Hub Res Tes Res Qua Frg Acc Com Matter Collected 7233 | 258 191 50 321 311 12 30 215 . 571 . 20 70 133 133 419 35 245 205 60 . 142 247 64 60 30 281 135 . 146 2426 88 335 Remotely 957 | . . . . . . . . . . . . . . . . . . . . . . . . . . . . . . 957 . . Salvage Created 9879 | 80 466 661 307 510 . . 160 . 629 . . . 159 149 451 . 189 93 190 . 143 798 30 201 . 574 235 . 146 1997 171 1540 Parts 460 | 6 27 31 29 33 . . 13 . 38 . . . 32 10 17 . 9 9 6 . 11 18 1 14 . 26 1 . 9 78 13 29 Haulers Intercepted 9 | . 2 . 1 1 . . . . 1 . . . . . . . 1 . . . . . . . . 1 1 . 1 . . . Recyclers Shooed 2 | . . . . 1 . . . . 1 . . . . . . . . . . . . . . . . . . . . . . . Parts Field Recycled . | . . . . . . . . . . . . . . . . . . . . . . . . . . . . . . . . . Retrieved Matter . | . . . . . . . . . . . . . . . . . . . . . . . . . . . . . . . . . Parts Self-Destructed 6 | . . . . . . . . . . 2 . . . 4 . . . . . . . . . . . . . . . . . . Prevented . | . . . . . . . . . . . . . . . . . . . . . . . . . . . . . . . . . Parts Restored 15 | . . . . . . . . . . . . . . . . . . . . . . . . . . . . . . 15 . . Faulty 15 | . . . . . . . . . . . . . . . . . . . . . . . . . . . . . . 15 . . Kills | -11 -10 -10 -9 -9 -9 -9 -6 -6 -6 -6 -6 -6 -6 -5 -5 -5 -5 -5 -4 -4 -4 -4 -4 -4 -4 -3 -3 -2 -2 -2 -1 -1 ------- Run | Yrd Mat Min Mat Sto Rec Scr Fac Was Fac Low Low Zio Dee Pro Fac Was Fac Gar Fac Was Fac Ext Cet Arc Hub Res Tes Res Qua Frg Acc Com Combat Hostiles Destroyed 153 | . 7 20 10 5 . . 7 . 12 . . . 8 12 2 . 1 1 . . 4 9 . . . . 1 . . 36 6 12 Melee 31 | . . . . . . . 1 . . . . . . 1 2 . 1 1 . . 4 4 . . . . 1 . . 6 2 8 Guns 35 | . 7 19 4 5 . . . . . . . . . . . . . . . . . . . . . . . . . . . . Cannons 19 | . . . . . . . . . . . . . . . . . . . . . . . . . . . . . . 19 . . AOE 62 | . . . 6 . . . 6 . 12 . . . 8 11 . . . . . . . 5 . . . . . . . 6 4 4 Classes Destroyed 25 | 2 6 . 1 . . . 2 . . . . . 2 1 . . . 1 . . 1 1 . . . . . . . 8 . . Worker 2 | . . . . . . . 1 . . . . . . . 1 . . . . . . . . . . . . . . . . . Builder 7 | . 1 . . . . . . . 2 . . . . . . . 2 . . . . . . . . 2 . . . . . . Tunneler 2 | 1 . . . . . . . . . . . . . . 1 . . . . . . . . . . . . . . . . . Hauler 9 | . 2 . 1 1 . . . . 1 . . . . . . . 1 . . . . . . . . 1 1 . 1 . . . Recycler 17 | 1 1 . . 3 . . . . 3 . . . . . 3 . . . 1 . . 2 . . . 3 . . . . . . Mechanic 2 | . . . . . . . . . . . . . . . . . . . . . . . . . . . . . . 1 . 1 Operator 14 | . 2 . 1 . . . 1 . . . . . . . . . . . 1 . . . . 6 . 1 . . 1 . 1 . Drone 4 | . . . . . . . . . . . . . . . . . . . . . . . . . . . . . . 4 . . Watcher 10 | . 2 . 1 1 . . 2 . . . . . . . . . 1 . . . . . 1 . . . 1 . . . . 1 Swarmer 51 | . 2 9 6 . . . 5 . 12 . . . . 9 2 . . . . . . . . . . . . . . . 6 . Cutter 3 | . . . . . . . . . . . . . . . . . . . . . 3 . . . . . . . . . . . Grunt 28 | . 5 11 1 . . . . . . . . . . 2 . . . . . . . 4 . . . . . . . 2 . 3 Brawler 1 | . . . . . . . . . . . . . . 1 . . . . . . . . . . . . . . . . . . Protector 2 | . . . . . . . . . . . . . . . . . . . . . . . . . . . . . . 1 . 1 Sentry 20 | . . . 3 5 . . . . . . . . . . . . 1 . . . . 1 . . . . . . . 10 . . Specialist 5 | . . . . . . . . . . . . . . . . . . . . . . . . . . . . . . 1 . 4 Hunter 4 | . . . . . . . . . . . . . . . . . . . . . . 4 . . . . . . . . . . Programmer 3 | . . . . . . . 2 . . . . . . . . . . . . . 1 . . . . . . . . . . . Behemoth 1 | . . . . . . . . . . . . . . . . . . 1 . . . . . . . . . . . . . . M Guard 1 | . . . . . . . . . . . . . . . . . . . . . . . . . . . . . . . . 1 Decapitator 6 | . . . . . . . . . . . . . . . . . . . . . . . . . . . . . . 6 . . Immortal 7 | . . . . . . . . . . . . . . . . . . . . . . . . . . . . . . 7 . . Combat Programmer 2 | . . . . . . . . . . . . . . . . . . . . . . . . . . . . . . . . 2 Striker 1 | . . . . . . . . . . . . . . . . . . . . . . . . . . . . . . 1 . . Alpha 7 2 | . . . . . . . . . . . . . . . . . . . . . . . . . . . . . . 2 . . V-Series 2 | . . . . . . . . . . . . . . . . . . . . . . . . . . . . . . 2 . . Z-Technician 1 | . . . . . . . . . . . . . 1 . . . . . . . . . . . . . . . . . . . Z-Light 5 | . . . . . . . . . . . . . 5 . . . . . . . . . . . . . . . . . . . Assembled 2 | . . . . . . . . . . . . . 2 . . . . . . . . . . . . . . . . . . . Best Kill Streak 6 | 2 2 3 4 4 . . 3 . 5 . . . 3 5 2 . 4 1 1 . 3 6 1 5 . 2 1 . 1 3 6 5 Combat Bots Only 6 | . 2 3 4 3 . . 3 . 4 . . . 3 5 2 . 1 1 . . 3 6 . . . . 1 . . 3 6 4 Max Kills in Single Turn 4 | 1 1 2 2 1 . . 3 . 2 . . . 1 3 1 . 1 1 1 . 1 3 1 1 . 1 1 . 1 2 4 3 Gunslinging 1 | . . 1 . . . . . . . . . . . . . . . . . . . . . . . . . . . . . . Exploded 4 | . . . 2 . . . 3 . 2 . . . 1 3 . . . . . . . 3 . . . . . . . 2 4 3 Melee 1 | . . . . . . . 1 . . . . . . 1 1 . 1 1 . . 1 1 . . . . 1 . . 1 1 1 Uniques/NPCs Destroyed 3 | . . . . . . . . . . . . . 1 . . . . . . . . . . . . . 1 . . . . 1 Z-Imprinter (-6/Deep Caves) 6S-H0T (-3/Testing) MAIN.C Shell (-1/Command) Combat | -11 -10 -10 -9 -9 -9 -9 -6 -6 -6 -6 -6 -6 -6 -5 -5 -5 -5 -5 -4 -4 -4 -4 -4 -4 -4 -3 -3 -2 -2 -2 -1 -1 -------- Run | Yrd Mat Min Mat Sto Rec Scr Fac Was Fac Low Low Zio Dee Pro Fac Was Fac Gar Fac Was Fac Ext Cet Arc Hub Res Tes Res Qua Frg Acc Com Hostile Shots Fired 1621 | . 36 62 51 57 . . 221 . 39 3 12 . 15 25 80 . 58 17 15 . 43 79 2 . 27 10 4 17 10 121 22 595 Missed 681 | . 6 17 23 23 . . 106 . 22 2 7 . 6 13 49 . 27 8 8 . 21 39 1 . 16 2 1 7 9 49 9 210 Intercepted 9 | . . . . . . . . . . . . . . . . . . . . . . . . . . . . . . 2 . 7 Deflected 15 | . . . . . . . . . . . . . . . . . . . . . . . . . . . . . . . . 15 Hits 940 | . 30 45 28 34 . . 115 . 17 1 5 . 9 12 31 . 31 9 7 . 22 40 1 . 11 8 3 10 1 72 13 385 Melee 11 | . . . . . . . . . . 1 . . . . . . . . . . 9 . . . . . . . . 1 . . Projectile 929 | . 30 45 28 34 . . 115 . 17 . 5 . 9 12 31 . 31 9 7 . 13 40 1 . 11 8 3 10 1 71 13 385 AOE 13 | . . . . . . . . . 2 . . . . . . . . . . . 4 . . . 1 . . . . 2 . 4 Critical Strikes 51 | . 1 . . 1 . . 3 . 1 . . . . 1 1 . 1 . . . 7 1 . . 1 2 . 1 . 6 . 24 Actively Blocked 26 | . . . . . . . . . . . . . . . . . . . . . . . . . . 2 . 1 . 1 . 22 Part Disruptions 8 | . . . . . . . . . . . . . . . . . . . . . . . . . . . . . . 1 . 7 Damage Taken 20627 | . 322 453 438 470 . . 1708 . 346 32 80 . 286 239 471 . 618 122 133 . 657 840 18 . 398 241 70 176 27 2576 171 9735 Core 4302 | . 47 122 138 110 . . 457 . 17 . 22 . 79 17 59 . 93 28 19 . 215 216 . . 110 . . 27 . 906 . 1620 Absorbed by Shields 3345 | . . . 57 4 . . 135 . . . . . . . . . . . . . . 11 17 . . . . . . 134 86 2901 Redirected to Shielding 357 | . . . . . . . 10 . . . . . . . . . . . . . . 220 . . 70 57 . . . . . . Ignored by Resistances 973 | . . . . . . . . . . . . . . . . . . . . . . . . . . . . . . 34 36 903 Regen/Repaired (Parts) 4944 | . 163 . . . . . 182 . 55 . . 11 . . 36 93 80 . 80 . . . . . . . . . . 19 29 4196 Core Remaining (%) 57 | 100 . 32 . . . 38 . . . . . . . 30 . . . 82 . . . . . . 51 . 100 . . 30 . . Volleys Fired 416 | 5 29 41 36 29 . . 7 . 9 . . . 10 14 . . . . . . . 5 . . . . . 4 . 215 4 8 Largest 2 | 2 2 2 2 2 . . 1 . 1 . . . 2 1 . . . . . . . 1 . . . . . 1 . 1 1 1 Hottest 140 | 40 112 112 112 46 . . 43 . 43 . . . 43 43 . . . . . . . 43 . . . . . 130 . 140 140 140 Shots Fired 540 | 10 57 82 58 53 . . 7 . 9 . . . 16 14 . . . . . . . 5 . . . . . 4 . 214 4 7 Gun 256 | 10 56 82 55 53 . . . . . . . . . . . . . . . . . . . . . . . . . . . . Cannon 221 | . . . . . . . . . . . . . . . . . . . . . . . . . . . . 4 . 209 3 5 Launcher 49 | . 1 . 3 . . . 7 . 9 . . . 2 14 . . . . . . . 5 . . . . . . . 5 1 2 Special 14 | . . . . . . . . . . . . . 14 . . . . . . . . . . . . . . . . . . . Kinetic 116 | 10 . . 53 53 . . . . . . . . . . . . . . . . . . . . . . . . . . . . Thermal 361 | . 56 82 2 . . . . . . . . . . . . . . . . . . . . . . . . 4 . 209 3 5 Explosive 61 | . 1 . 3 . . . 7 . 9 . . . 14 14 . . . . . . . 5 . . . . . . . 5 1 2 Electromagnetic . | . . . . . . . . . . . . . . . . . . . . . . . . . . . . . . . . . Robot Hit Streak 28 | 3 5 7 13 28 . . 3 . 2 . . . 9 5 . . . . . . . 5 . . . . . . . 13 2 4 Robot Miss Streak 7 | 1 3 2 3 1 . . 1 . . . . . 2 3 . . . . . . . . . . . . . . . 7 2 1 Penetration Max 1 | . . . . . . . . . . . . . . . . . . . . . . . . . . . . . . 1 . . Secondary Targets 5 | . . 5 . . . . . . . . . . . . . . . . . . . . . . . . . . . . . . Max Gunslinging Chain 1 | . . 1 . . . . . . . . . . . . . . . . . . . . . . . . . . . . . . Shots Hit Robots 549 | 6 31 53 39 42 . . 10 . 14 . . . 13 11 20 . 5 1 6 . 6 28 1 12 . 13 9 . 3 101 4 121 Core Hits 330 | 3 17 25 17 17 . . 12 . 21 . . . 15 14 6 . 5 1 2 . 4 21 1 6 . 4 4 . 2 62 9 62 Critical Kills 5 | . . . . . . . . . . . . . . . . . . . . . . . . . . . . . . 5 . . Critical Parts Destroyed . | . . . . . . . . . . . . . . . . . . . . . . . . . . . . . . . . . Critical Strikes 81 | . 5 7 . . . . . . 1 . . . 1 . 1 . . . . . . 2 . 1 . . 2 . 1 17 1 42 Burn 12 | . 5 7 . . . . . . . . . . . . . . . . . . . . . . . . . . . . . . Meltdown 5 | . . . . . . . . . . . . . . . . . . . . . . . . . . . . . . 5 . . Sever 12 | . . . . . . . . . 1 . . . 1 . 1 . . . . . . 2 . 1 . . 2 . 1 2 . 1 Impale 52 | . . . . . . . . . . . . . . . . . . . . . . . . . . . . . . 10 1 41 Melee Attacks 665 | . . . . . . . 46 . 50 . 8 1 7 5 74 . 33 12 34 . 27 34 4 15 16 35 29 10 12 49 14 150 Impact 29 | . . . . . . . 29 . . . . . . . . . . . . . . . . . . . . . . . . . Slashing 477 | . . . . . . . 16 . 50 . 8 1 7 5 73 . 33 11 32 . 27 34 4 15 16 35 28 10 12 16 1 43 Piercing 154 | . . . . . . . . . . . . . . . . . . 1 . . . . . . . . . . . 33 13 107 Sneak Attacks 48 | . . . . . . . 3 . 6 . . . 2 . 8 . 3 1 2 . . 2 . 7 . 7 1 . 1 4 . 1 Combat Hostiles 1 | . . . . . . . . . . . . . . . . . . 1 . . . . . . . . . . . . . . Follow-up Attacks 19 | . . . . . . . . . . . . . . . . . . . . . . . . . . . . . . . . 19 Martial Strikes 32 | . . . . . . . . . . . . . . . . . . . . . . . . . . . . . . 10 10 12 Damage Inflicted 35179 | 72 538 972 837 558 . . 1084 . 2011 . . . 1826 1794 1092 . 427 78 342 . 348 2607 60 1114 . 1227 609 . 223 9194 572 7594 Guns 2517 | 72 531 928 428 558 . . . . . . . . . . . . . . . . . . . . . . . . . . . . Cannons 7092 | . . . . . . . . . . . . . . . . . . . . . . . . . . . . . . 7030 . 62 Explosions 8795 | . . . 409 . . . 758 . 1374 . . . 1290 1658 . . . . . . . 1077 . . . . . . . 743 391 1095 Melee 16452 | . . . . . . . 326 . 637 . . . 265 136 1092 . 427 78 342 . 348 1530 60 1114 . 1227 608 . 223 1421 181 6437 Ramming 52 | . 7 44 . . . . . . . . . . . . . . . . . . . . . . . . 1 . . . . . Kinetic 1040 | 72 . . 410 558 . . . . . . . . . . . . . . . . . . . . . . . . . . . . Thermal 8748 | . 531 928 18 . . . 179 . . . . . . . . . . . . . . . . . . . . . . 7030 . 62 Explosive 8616 | . . . 409 . . . 579 . 1374 . . . 1290 1658 . . . . . . . 1077 . . . . . . . 743 391 1095 Electromagnetic . | . . . . . . . . . . . . . . . . . . . . . . . . . . . . . . . . . Impact 227 | . . . . . . . 227 . . . . . . . . . . . . . . . . . . . . . . . . . Slashing 11031 | . . . . . . . 99 . 637 . . . 536 136 1092 . 427 . 342 . 348 1530 60 1114 . 1227 608 . 223 453 . 2199 Piercing 5465 | . . . . . . . . . . . . . . . . . . 78 . . . . . . . . . . . 968 181 4238 Highest Corruption 56 | . . . 1 1 1 . 3 10 10 . . . . . . . 5 5 . 8 9 2 2 2 4 . 1 . . 5 . 56 Average Corruption 4 | . . . 1 1 1 . 2 5 4 . . . . . . . 4 5 . 8 7 2 2 1 2 . 1 . . 4 . 13 Corruption Purged 19 | . . . . . . . . . 10 . . . . . . . . . . . 7 . . 2 . . . . . . . . Corruption Blocked . | . . . . . . . . . . . . . . . . . . . . . . . . . . . . . . . . . Effects 146 | . . . . 3 . . 4 . 14 . . . . . . . 2 4 . . 15 4 5 . 2 . . . . 73 . 20 Message Errors 28 | . . . . 1 . . 1 . 3 . . . . . . . . . . . 3 1 1 . . . . . . 17 . 1 Matter Fused 35 | . . . . 1 . . . . 4 . . . . . . . . . . . 5 1 2 . . . . . . 17 . 5 Heat Flow Errors 20 | . . . . . . . 1 . 3 . . . . . . . 1 1 . . 1 1 1 . 1 . . . . 9 . 1 Energy Discharges 20 | . . . . 1 . . . . . . . . . . . . . 1 . . 3 1 . . . . . . . 12 . 2 Parts Rejected 6 | . . . . . . . 1 . 1 . . . . . . . 1 1 . . . . . . . . . . . 1 . 1 Parts Fused 3 | . . . . . . . . . . . . . . . . . . . . . . . . . . . . . . 3 . . Data Loss (minor) 20 | . . . . . . . . . 3 . . . . . . . . 1 . . 1 . 1 . 1 . . . . 8 . 5 Data Loss (major) 4 | . . . . . . . 1 . . . . . . . . . . . . . 1 . . . . . . . . 2 . . Alerts 4 | . . . . . . . . . . . . . . . . . . . . . 1 . . . . . . . . 3 . . Misdirections 4 | . . . . . . . . . . . . . . . . . . . . . . . . . . . . . . . . 4 Weapon Failures 2 | . . . . . . . . . . . . . . . . . . . . . . . . . . . . . . 1 . 1 Overload Shots . | . . . . . . . . . . . . . . . . . . . . . . . . . . . . . . . . . Overflow Damage 3235 | . . . 28 . . . 184 . 242 . . . 320 252 172 . . . 18 . 10 172 . 367 . 392 104 . . 818 . 156 Projectiles 325 | . . . . . . . . . . . . . 6 . . . . . . . . . . . . . . . . 319 . . Explosions 568 | . . . 28 . . . 70 . 150 . . . 115 152 . . . . . . . 27 . . . . . . . . . 26 Melee 2342 | . . . . . . . 114 . 92 . . . 199 100 172 . . . 18 . 10 145 . 367 . 392 104 . . 499 . 130 Knockbacks . | . . . . . . . . . . . . . . . . . . . . . . . . . . . . . . . . . Impact . | . . . . . . . . . . . . . . . . . . . . . . . . . . . . . . . . . Kinetic . | . . . . . . . . . . . . . . . . . . . . . . . . . . . . . . . . . Secondary . | . . . . . . . . . . . . . . . . . . . . . . . . . . . . . . . . . Self-Inflicted Damage 300 | . . . . . . . 130 . 25 . . . . 45 . . . . . . . . . . . . . . . 100 . . Shots 8 | . . . . . . . 2 . 1 . . . . 1 . . . . . . . . . . . . . . . 4 . . Rammed 10 | . 2 7 . . . . . . . . . . . . . . . . . . . . . . . . 1 . . . . . Targets Rammed 11 | . 3 7 . . . . . . . . . . . . . . . . . . . . . . . . 1 . . . . . Kicked . | . . . . . . . . . . . . . . . . . . . . . . . . . . . . . . . . . Crushed 1 | . 1 . . . . . . . . . . . . . . . . . . . . . . . . . . . . . . . Highest Temperature 325 | . 153 96 36 37 1 . 229 9 302 93 . . 12 57 150 . 237 102 7 10 276 257 91 . 204 . . 266 309 310 68 325 Average Temperature 44 | . 52 33 11 13 1 . 33 9 53 44 . . 8 22 24 . 8 60 4 10 64 97 42 . 108 . . 27 99 47 23 112 Received Heat Transfer 1682 | . 96 120 91 177 . . 274 . 9 . . . 90 18 120 . 117 . 33 . 46 103 4 . 48 9 . 27 . 178 . 122 Effects 3 | . . . . . . . . . . . . . . . . . 1 . . . . 1 . . . . . . . . . 1 Energy Bleed 2 | . . . . . . . . . . . . . . . . . 1 . . . . 1 . . . . . . . . . . Matter Decay 1 | . . . . . . . . . . . . . . . . . . . . . . . . . . . . . . . . 1 Siege Activations . | . . . . . . . . . . . . . . . . . . . . . . . . . . . . . . . . . Martial Activations . | . . . . . . . . . . . . . . . . . . . . . . . . . . . . . . . . . Shielding Activations . | . . . . . . . . . . . . . . . . . . . . . . . . . . . . . . . . . Robots Disrupted . | . . . . . . . . . . . . . . . . . . . . . . . . . . . . . . . . . Combat Hostiles . | . . . . . . . . . . . . . . . . . . . . . . . . . . . . . . . . . Robots Corrupted 1 | . . . . . . . 1 . . . . . . . . . . . . . . . . . . . . . . . . . Combat Hostiles . | . . . . . . . . . . . . . . . . . . . . . . . . . . . . . . . . . Parts Fried 6 | . . . . . . . 4 . . . . . . . . . . . . . 2 . . . . . . . . . . . Impact Corruptions 3 | . . . . . . . 3 . . . . . . . . . . . . . . . . . . . . . . . . . Robots Melted 6 | . . 1 . . . . . . . . . . . . . . . . . . . . . . . . . . . 5 . . Combat Hostiles 6 | . . 1 . . . . . . . . . . . . . . . . . . . . . . . . . . . 5 . . Parts Melted 24 | . 6 5 . . . . . . . . . . . . . . . . . . . . . . . . . . . 11 . 2 Heat Transferred 8357 | . 1517 2479 37 . . . 150 . . . . . . . . . . . . . . . . . . . . . . 4162 . 12 Parts Sabotaged . | . . . . . . . . . . . . . . . . . . . . . . . . . . . . . . . . . Parts Stolen . | . . . . . . . . . . . . . . . . . . . . . . . . . . . . . . . . . Parts Stripped . | . . . . . . . . . . . . . . . . . . . . . . . . . . . . . . . . . Power Chain Reactions 1 | . . . . . . . . . . . . . . . 1 . . . . . . . . . . . . . . . . . Alert | -11 -10 -10 -9 -9 -9 -9 -6 -6 -6 -6 -6 -6 -6 -5 -5 -5 -5 -5 -4 -4 -4 -4 -4 -4 -4 -3 -3 -2 -2 -2 -1 -1 ------- Run | Yrd Mat Min Mat Sto Rec Scr Fac Was Fac Low Low Zio Dee Pro Fac Was Fac Gar Fac Was Fac Ext Cet Arc Hub Res Tes Res Qua Frg Acc Com Maximum Alert Level 4 | . . . 2 2 1 . 2 . 2 . . . . . 1 . . 3 2 1 1 . . 1 1 . . . . 4 4 3 Low Security (%) 55 | 100 100 100 37 27 . . 31 100 53 . . . . . 72 100 100 30 . . 52 100 100 63 75 100 100 100 100 5 . . Level 1 15 | . . . 58 40 99 . 50 . 9 . . . . . 27 . . 25 1 100 47 . . 36 24 . . . . 14 . . Level 2 13 | . . . 3 32 . . 17 . 36 . . . . . . . . 20 98 . . . . . . . . . . 29 . . Level 3 5 | . . . . . . . . . . . . . . . . . . 24 . . . . . . . . . . . 7 87 100 Level 4 9 | . . . . . . . . . . . . . . . . . . . . . . . . . . . . . . 42 12 . Level 5 . | . . . . . . . . . . . . . . . . . . . . . . . . . . . . . . . . . High Security . | . . . . . . . . . . . . . . . . . . . . . . . . . . . . . . . . . Max Security . | . . . . . . . . . . . . . . . . . . . . . . . . . . . . . . . . . Peak Influence 1597 | 10 60 130 465 466 297 . 560 93 685 . . . . . 396 89 199 762 644 222 330 176 188 221 257 163 97 104 97 1597 1192 1049 Initial 957 | . . . 50 196 178 . . 93 58 . . . . . 142 89 . 56 399 222 155 79 93 68 58 118 . . 54 21 957 756 Average 330 | 1 11 65 225 320 258 . 249 90 255 . . . . . 146 36 83 417 514 222 203 62 79 172 156 85 31 39 61 871 1011 1010 Influence Increases 13707 | 10 294 586 671 668 189 . 1072 . 994 30 120 . . 427 849 . 638 726 475 . 382 387 312 211 369 412 239 177 144 2428 275 622 Destroy 0b10 Robot/C 3660 | . 140 420 240 160 . . 140 . 240 . . . . 260 40 . 160 320 . . 80 200 160 80 60 . . . . 620 120 220 Destroy 0b10 Robot/NC 370 | 10 40 . 20 25 . . 20 . 30 . . . . . 25 . 20 . 10 . . 15 10 30 5 35 10 . 10 35 5 15 Destroy Leader 578 | . 48 90 56 84 . . 34 . 32 . . . . 30 . . 34 20 . . 20 40 . . 10 2 4 . 2 40 10 22 Allied During Kill 516 | . . 16 23 5 . . . . . . . . . 17 . . 123 104 1 . . 11 93 78 . . . . . . . 45 Trap Triggered on 0b10 50 | . . . . 30 . . . . . . . . . . . . . . 20 . . . . . . . . . . . . . Successful Hack 996 | . 55 . 23 34 39 . 87 . 51 . . . . . 71 . 39 8 32 . 22 50 . . 50 164 87 32 12 . 53 87 Select Force Hacks 220 | . . . . . 150 . 20 . . . . . . . 50 . . . . . . . . . . . . . . . . . Disable Machine 975 | . . . 30 45 . . 75 . 105 . . . . . 15 . 15 45 30 . 30 . 15 15 60 . 105 15 45 315 15 . Anti-Garrison Action 650 | . . . . . . . . . 200 . . . . . . . . 200 . . . . . . . . . . . 200 . 50 Destroy Structure 1977 | . 11 . 54 . . . 81 . 111 . . . . . 78 . 82 14 52 . 20 56 34 8 34 36 18 40 15 993 72 168 Partial Spotted 750 | . . . 75 . . . 45 . 165 . . . . . 60 . 30 15 60 . 15 15 . . 60 45 15 75 15 45 . 15 Lose Combat Pursuer 2865 | . . 60 150 285 . . 570 . 60 30 120 . . 120 510 . 135 . 270 . 195 . . . 90 30 . 15 45 180 . . Miscellaneous 100 | . . . . . . . . . . . . . . . . . . . . . . . . . . 100 . . . . . . Influence Decreases 12829 | 10 294 456 336 675 440 207 804 185 429 321 269 208 . 200 821 255 557 45 601 414 441 382 308 214 311 637 241 80 203 869 690 926 Entered New Map 4285 | . . . 80 269 280 207 . 175 25 241 69 208 . . 85 166 . 25 363 414 67 84 75 104 111 109 2 . 43 17 640 426 Time Decay 5958 | 10 294 436 206 206 160 . 354 10 352 70 180 . . 130 416 89 315 . 198 . 214 178 206 90 110 358 239 70 160 717 50 140 Search Patrol Dispatched 400 | . . . . . . . 200 . . . . . . . 100 . . . . . 100 . . . . . . . . . . . Lost Part 929 | . . 20 10 20 . . 100 . 42 10 20 . . 30 60 . 52 . . . 60 70 . . 30 20 . 10 . 135 . 240 Lost Ally 807 | . . . 40 180 . . . . 10 . . . . 40 10 . 190 20 40 . . 50 27 20 60 . . . . . . 120 Purge Threat 450 | . . . . . . . 150 . . . . . . . 150 . . . . . . . . . . 150 . . . . . . Squads Dispatched 125 | . 2 . 1 4 . . 15 . 21 . . . . . 16 . 11 . 7 . 10 2 . . 6 10 4 1 4 7 1 3 Investigation 63 | . . . 1 1 . . 11 . 12 . . . . . 10 . 6 . 4 . 3 2 . . 1 7 . 1 . 3 1 . Extermination 23 | . . . . . . . 3 . 4 . . . . . 3 . 2 . 1 . 2 . . . 1 1 2 . 2 1 . 1 Reinforcement 33 | . 2 . . 1 . . 1 . 5 . . . . . 3 . 1 . 2 . 5 . . . 4 2 2 . 2 3 . . Assault 6 | . . . . 2 . . . . . . . . . . . . 2 . . . . . . . . . . . . . . 2 Garrison . | . . . . . . . . . . . . . . . . . . . . . . . . . . . . . . . . . Intercept . | . . . . . . . . . . . . . . . . . . . . . . . . . . . . . . . . . Searches Triggered 4 | . . . . . . . 2 . . . . . . . 1 . . . . . 1 . . . . . . . . . . . Unchained Authorized 3 | . . . . . . . . . . . . . . . . . . . . . . . . . . . 1 . 1 . 1 . Construction Impeded 1 | . . . . . . . . . 1 . . . . . . . . . . . . . . . . . . . . . . . Haulers Reinforced 1 | . . . . . . . . . . . . . . . 1 . . . . . . . . . . . . . . . . . Active Scanning Responses . | . . . . . . . . . . . . . . . . . . . . . . . . . . . . . . . . . Cargo Convoy Interrupts . | . . . . . . . . . . . . . . . . . . . . . . . . . . . . . . . . . Stealth | -11 -10 -10 -9 -9 -9 -9 -6 -6 -6 -6 -6 -6 -6 -5 -5 -5 -5 -5 -4 -4 -4 -4 -4 -4 -4 -3 -3 -2 -2 -2 -1 -1 --------- Run | Yrd Mat Min Mat Sto Rec Scr Fac Was Fac Low Low Zio Dee Pro Fac Was Fac Gar Fac Was Fac Ext Cet Arc Hub Res Tes Res Qua Frg Acc Com Distress Signals 50 | . . . 1 8 . . 2 . 3 . . . . . 5 . 1 . 2 . 4 1 2 . 2 4 . . . 13 1 1 Communications Jammed 19 | . . . . . . . . . . . . . . . . . . . . . . . . . 3 . . 2 6 8 . . Distress Signals 18 | . . . . . . . . . . . . . . . . . . . . . . . . . 3 . . 2 6 7 . . Times Spotted 668 | . 15 25 32 33 . . 76 6 47 4 9 . 9 19 70 . 41 13 22 5 26 24 12 6 29 5 6 8 11 67 10 38 Peak Tracking Total 16 | . 3 3 11 14 . . 11 6 10 3 3 . 3 8 16 . 13 5 7 5 15 6 5 . 9 2 2 6 6 10 6 11 Tactical Retreats 107 | . . 4 4 6 . . 17 . 13 1 3 . . 2 16 . 3 . 6 . 8 3 2 . 6 3 . 2 2 4 . 2 ECM-based Alert Blocks 104 | . . . . . . . 18 . 25 . . . . . 7 . 8 . . . 12 7 6 . 9 1 . 5 . . . 6 Traps | -11 -10 -10 -9 -9 -9 -9 -6 -6 -6 -6 -6 -6 -6 -5 -5 -5 -5 -5 -4 -4 -4 -4 -4 -4 -4 -3 -3 -2 -2 -2 -1 -1 ------- Run | Yrd Mat Min Mat Sto Rec Scr Fac Was Fac Low Low Zio Dee Pro Fac Was Fac Gar Fac Was Fac Ext Cet Arc Hub Res Tes Res Qua Frg Acc Com Traps Triggered 36 | . 1 . . 1 . . 3 . 1 . . . . . 3 . 3 . 1 . 2 . . . . . 1 . 2 18 . . Indirectly . | . . . . . . . . . . . . . . . . . . . . . . . . . . . . . . . . . Trap Hack Attempts 105 | . . . . . . . 2 . 2 . . . . . 40 . 29 . . . . 5 . . . 22 5 . . . . . Triggered 1 | . . . . . . . . . . . . . . . . . 1 . . . . . . . . . . . . . . . Disarmed 6 | . . . . . . . . . 1 . . . . . . . . . . . . . . . . 1 . 4 . . . . Reprogrammed 31 | . . . . 3 . . 1 . . . . . . . 4 . 9 . 6 . . 2 . . . 5 1 . . . . . Reused 8 | . . . . 3 . . . . . . . . . . . . . . 2 . . . . . . . 3 . . . . . Traps Extracted 11 | . . . . . . . . . . . . . . . 4 . 4 . . . . . . . . . 3 . . . . . Installed 8 | . . . . . . . . . . . . . . . . . . . . . . . . . . . 8 . . . . . Triggered 5 | . . . . 3 . . . . . . . . . . . . . . 2 . . . . . . . . . . . . . Most Traps Carried 8 | . . . . . . . . . . . . . . . 4 4 8 8 8 8 8 8 8 8 8 8 8 3 3 3 . . Machines | -11 -10 -10 -9 -9 -9 -9 -6 -6 -6 -6 -6 -6 -6 -5 -5 -5 -5 -5 -4 -4 -4 -4 -4 -4 -4 -3 -3 -2 -2 -2 -1 -1 ---------- Run | Yrd Mat Min Mat Sto Rec Scr Fac Was Fac Low Low Zio Dee Pro Fac Was Fac Gar Fac Was Fac Ext Cet Arc Hub Res Tes Res Qua Frg Acc Com Machines Disabled 83 | . . . 2 3 . . 5 . 7 . 1 3 . . 1 . 1 7 2 . 2 . 1 1 4 . 7 2 3 28 1 2 Max in Single Turn 5 | . . . . 1 . . 5 . 2 . 1 1 . . 1 . . 1 1 . 1 . 1 . 1 . 1 1 1 2 1 2 Garrison Access 16 | . . . . . . . 1 . 1 . . . . . 1 . 1 . 2 . 1 . . . 2 4 1 1 . 1 . . Garrison Relay 3 | . . . . . . . . . . . . . . . . . . 3 . . . . . . . . . . . . . . Phase Generator 2 | . . . . . . . . . . . . . . . . . . 1 . . . . . . . . . . . . . 1 Network Hub 4 | . . . . . . . . . . . . . . . . . . . . . . . . . 4 . . . . . . . Machines Repaired . | . . . . . . . . . . . . . . . . . . . . . . . . . . . . . . . . . Machines Dismantled 11 | . . . . 3 . . . . . . . 3 . . . . . 1 . . . . 1 . 3 . . . . . . . Machines Sabotaged . | . . . . . . . . . . . . . . . . . . . . . . . . . . . . . . . . . Overloaded Fab Kills 5 | . . . . . . . . . . . . . . . 5 . . . . . . . . . . . . . . . . . Hacking | -11 -10 -10 -9 -9 -9 -9 -6 -6 -6 -6 -6 -6 -6 -5 -5 -5 -5 -5 -4 -4 -4 -4 -4 -4 -4 -3 -3 -2 -2 -2 -1 -1 --------- Run | Yrd Mat Min Mat Sto Rec Scr Fac Was Fac Low Low Zio Dee Pro Fac Was Fac Gar Fac Was Fac Ext Cet Arc Hub Res Tes Res Qua Frg Acc Com Machines Accessed 228 | . 7 . 10 12 11 4 24 . 25 . . . . . 25 . 20 2 14 . 10 9 . . 8 19 7 4 2 4 5 6 Terminals 130 | . 6 . 9 11 6 . 11 . 9 . . . . . 11 . 9 2 9 . 4 8 . . 6 9 5 2 1 1 5 6 Fabricators 7 | . . . . . . . 1 . 1 . . . . . 2 . 1 . . . . . . . . 1 1 . . . . . Repair Stations 9 | . 1 . . . . . 2 . 2 . . . . . 1 . 1 . 1 . 1 . . . . . . . . . . . Recycling Units 46 | . . . . . 5 . 7 . 8 . . . . . 7 . 6 . 2 . 3 1 . . . 4 . 1 . 2 . . Scanalyzers 11 | . . . 1 . . . 1 . 3 . . . . . 2 . 1 . . . 1 . . . . 1 . . 1 . . . Garrison Access 21 | . . . . 1 . . 2 . 2 . . . . . 2 . 2 . 2 . 1 . . . 2 4 1 1 . 1 . . Total Hacks 563 | . 25 . 26 31 26 10 55 . 62 . . . . . 60 . 38 3 31 . 18 21 . . 11 55 22 20 7 9 13 20 Successful 342 | . 15 . 14 18 14 10 30 . 38 . . . . . 44 . 30 2 20 . 11 11 . . 10 31 12 8 3 3 10 8 Failed 220 | . 10 . 11 13 12 . 25 . 24 . . . . . 16 . 8 1 11 . 7 10 . . 1 24 10 12 4 6 3 12 Catastrophic 23 | . . . . 1 . . 2 . 3 . . . . . 1 . 1 1 1 . . . . . . 5 . 2 . 2 1 3 Database Lockouts 1 | . . . 1 . . . . . . . . . . . . . . . . . . . . . . . . . . . . . Manual 331 | . 18 . 20 12 20 . 32 . 29 . . . . . 36 . 23 2 26 . 9 10 1 . 7 25 19 8 4 8 6 16 Terminals 391 | . 21 . 24 29 19 . 28 . 30 . . . . . 37 . 23 3 25 . 12 20 . . 9 35 20 18 4 1 13 20 Fabricators 15 | . . . . . . . 3 . 3 . . . . . 3 . 3 . . . . . . . . 2 1 . . . . . Repair Stations 20 | . 4 . . . . . 5 . 6 . . . . . 1 . 2 . 1 . 1 . . . . . . . . . . . Recycling Units 65 | . . . . . 7 . 10 . 11 . . . . . 9 . 7 . 3 . 3 1 . . . 6 . 1 . 7 . . Scanalyzers 37 | . . . 2 . . . 6 . 8 . . . . . 8 . 1 . . . 1 . . . . 8 . . 3 . . . Garrison Access 25 | . . . . 2 . . 3 . 4 . . . . . 2 . 2 . 2 . 1 . . . 2 4 1 1 . 1 . . Terminal Hacks 109 | . 4 . 5 9 2 10 5 . 6 . . . . . 14 . 6 1 6 . 2 5 . . 5 9 2 3 . 1 7 7 Record 6 | . . . . . . 6 . . . . . . . . . . . . . . . . . . . . . . . . . . Part Schematic 4 | . . . . . . . . . 1 . . . . . 1 . 1 . 1 . . . . . . . . . . . . . Robot Analysis 9 | . 3 . 1 . . 3 . . 1 . . . . . 1 . . . . . . . . . . . . . . . . . Prototype ID Bank 14 | . . . 2 1 1 . 2 . . . . . . . 4 . . . . . 1 . . . . 1 . . . . . 2 Open Door 13 | . . . . 4 . . . . . . . . . . . . . . 1 . . 4 . . . . . . . . 3 1 Branch Access Points 9 | . . . 1 . . . . . 1 . . . . . . . 1 . 1 . 1 . . . . 1 1 1 . . 1 . Terminal Index 7 | . . . . 1 1 . . . . . . . . . 1 . 2 . 1 . . . . . . 1 . . . . . . Garrison Index 1 | . . . . . . . . . . . . . . . . . 1 . . . . . . . . . . . . . . . Alert Level 1 | . . . . . . . . . . . . . . . 1 . . . . . . . . . . . . . . . . . Unreport Threat 4 | . . . . . . . 1 . . . . . . . 1 . . . . . . . . . . 2 . . . . . . Locate Traps 13 | . 1 . 1 1 . . 2 . 2 . . . . . 3 . . . 1 . . . . . . 1 . . . . 1 . Disarm Traps 2 | . . . . . . . . . . . . . . . . . . . . . . . . . . . . 2 . . . . Reprogram Traps 2 | . . . . 1 . . . . . . . . . . . . . . 1 . . . . . . . . . . . . . Recall Extermination 1 | . . . . . . . . . . . . . . . . . . . . . . . . . . . 1 . . . . . Zone Layout 20 | . . . . 1 . . . . 1 . . . . . 2 . 1 . . . . 1 . . 5 3 . . . . 2 4 Garrison Registry 1 | . . . . . . . . . . . . . . . . . . 1 . . . . . . . . . . . . . . Proto ID Catalog 2 | . . . . . . 1 . . . . . . . . . . . . . . . . . . . . . . . 1 . . Fabricator Hacks 9 | . . . . . . . 1 . 2 . . . . . 2 . 2 . . . . . . . . 1 1 . . . . . Network Status 5 | . . . . . . . 1 . 1 . . . . . 1 . . . . . . . . . . 1 1 . . . . . Load Schematic 2 | . . . . . . . . . 1 . . . . . . . 1 . . . . . . . . . . . . . . . Build 2 | . . . . . . . . . . . . . . . 1 . 1 . . . . . . . . . . . . . . . Repair Station Hacks 15 | . 4 . . . . . 2 . 6 . . . . . . . 2 . . . 1 . . . . . . . . . . . Scan Component 7 | . 2 . . . . . 1 . 3 . . . . . . . 1 . . . . . . . . . . . . . . . Repair 7 | . 2 . . . . . 1 . 3 . . . . . . . 1 . . . . . . . . . . . . . . . Refit 1 | . . . . . . . . . . . . . . . . . . . . . 1 . . . . . . . . . . . Recycling Unit Hacks . | . . . . . . . . . . . . . . . . . . . . . . . . . . . . . . . . . Scanalyzer 26 | . . . 2 . . . 5 . 5 . . . . . 6 . 1 . . . 1 . . . . 5 . . 1 . . . Insert Component 5 | . . . . . . . 2 . 1 . . . . . 1 . . . . . . . . . . . . . 1 . . . Analyze 4 | . . . . . . . 2 . 1 . . . . . 1 . . . . . . . . . . . . . . . . . Retrieve Study 17 | . . . 2 . . . 1 . 3 . . . . . 4 . 1 . . . 1 . . . . 5 . . . . . . Garrison Access Hacks 15 | . . . . . . . 1 . . . . . . . 1 . 2 . 2 . 1 . . . 2 4 1 1 . . . . Unlock Access 2 | . . . . . . . . . . . . . . . . . 2 . . . . . . . . . . . . . . . Seal Access 13 | . . . . . . . 1 . . . . . . . 1 . . . 2 . 1 . . . 2 4 1 1 . . . . Unauthorized Hacks 168 | . 7 . 7 9 12 . 16 . 19 . . . . . 21 . 17 1 12 . 6 6 . . 3 12 8 4 2 2 3 1 Terminals 116 | . 7 . 7 9 7 . 8 . 9 . . . . . 12 . 10 1 10 . 3 5 . . 3 8 8 3 2 . 3 1 Track 9 | . . . . . . . . . . . . . . . 3 . 2 . . . . 1 . . 1 . 1 . . . 1 . Assimilate 12 | . . . . 1 . . 1 . 2 . . . . . 1 . 1 . 2 . . 2 . . . 1 . . 1 . . . Botnet 26 | . 2 . 2 2 2 . 2 . 2 . . . . . 2 . 2 1 2 . 1 . . . . 1 2 1 . . 1 1 Disrupt 1 | . . . . . . . . . . . . . . . . . . . . . . 1 . . . . . . . . . . Skim 66 | . 5 . 5 6 5 . 5 . 5 . . . . . 6 . 5 . 5 . 2 1 . . 1 6 5 2 1 . 1 . Sabotage 1 | . . . . . . . . . . . . . . . . . . . . . . . . . 1 . . . . . . . Search 1 | . . . . . . . . . . . . . . . . . . . 1 . . . . . . . . . . . . . Fabricators 4 | . . . . . . . 1 . 1 . . . . . 1 . 1 . . . . . . . . . . . . . . . Prioritize 1 | . . . . . . . . . . . . . . . . . 1 . . . . . . . . . . . . . . . Overload 1 | . . . . . . . . . . . . . . . 1 . . . . . . . . . . . . . . . . . Download 1 | . . . . . . . 1 . . . . . . . . . . . . . . . . . . . . . . . . . Recompile 1 | . . . . . . . . . 1 . . . . . . . . . . . . . . . . . . . . . . . Repair Stations 3 | . . . . . . . 1 . . . . . . . 1 . . . 1 . . . . . . . . . . . . . Patch 3 | . . . . . . . 1 . . . . . . . 1 . . . 1 . . . . . . . . . . . . . Recycling Units 43 | . . . . . 5 . 6 . 8 . . . . . 7 . 6 . 1 . 3 1 . . . 4 . 1 . 1 . . Tunnel 5 | . . . . . 5 . . . . . . . . . . . . . . . . . . . . . . . . . . . Fedlink 38 | . . . . . . . 6 . 8 . . . . . 7 . 6 . 1 . 3 1 . . . 4 . 1 . 1 . . Scanalyzers . | . . . . . . . . . . . . . . . . . . . . . . . . . . . . . . . . . Garrison Access 2 | . . . . . . . . . 1 . . . . . . . . . . . . . . . . . . . . 1 . . Jam 2 | . . . . . . . . . 1 . . . . . . . . . . . . . . . . . . . . 1 . . Data Cores Recovered 5 | . . . 1 1 . . . . . . . . . . . . . . 1 . . . . . . 1 . . . . 1 . Used 2 | . . . . 1 . . . . . . . . . . . . . . . . . . . . . . . . . . 1 . Hacking Detections 137 | . 7 . 10 8 7 . 17 . 17 . . . . . 15 . 14 2 8 . 5 5 . . 1 6 3 2 2 1 2 5 Full Trace Events 7 | . . . 1 1 . . 3 . 1 . . . . . . . . . 1 . . . . . . . . . . . . . Feedback Events 1 | . . . 1 . . . . . . . . . . . . . . . . . . . . . . . . . . . . . Corruption 1 | . . . 1 . . . . . . . . . . . . . . . . . . . . . . . . . . . . . Feedback Blocked . | . . . . . . . . . . . . . . . . . . . . . . . . . . . . . . . . . Robot Schematics Acquired 3 | . . . . . . . . . . . . 3 . . . . . . . . . . . . . . . . . . . . Robots Built . | . . . . . . . . . . . . . . . . . . . . . . . . . . . . . . . . . Authchips . | . . . . . . . . . . . . . . . . . . . . . . . . . . . . . . . . . Time . | . . . . . . . . . . . . . . . . . . . . . . . . . . . . . . . . . Total Robot Build Rating . | . . . . . . . . . . . . . . . . . . . . . . . . . . . . . . . . . Part Schematics Acquired 25 | . . . . . . . 3 . 2 . . 15 . . 2 . 1 . 1 . . . . . . . . . . 1 . . Parts Built 3 | . . . . . . . . . . . . . . . 1 . 2 . . . . . . . . . . . . . . . Authchips 1 | . . . . . . . . . . . . . . . . . 1 . . . . . . . . . . . . . . . Time 227 | . . . . . . . . . . . . . . . 169 . 58 . . . . . . . . . . . . . . . Total Part Build Rating 20 | . . . . . . . . . . . . . . . 6 . 14 . . . . . . . . . . . . . . . Part Studies Acquired 17 | . . . 2 . . . 1 . 3 . . . . . 4 . 1 . . . 1 . . . . 5 . . . . . . Parts Repaired 7 | . 2 . . . . . 1 . 3 . . . . . . . 1 . . . . . . . . . . . . . . . Time 316 | . 38 . . . . . 38 . 212 . . . . . . . 28 . . . . . . . . . . . . . . . Parts Recycled . | . . . . . . . . . . . . . . . . . . . . . . . . . . . . . . . . . Recycled Matter . | . . . . . . . . . . . . . . . . . . . . . . . . . . . . . . . . . Retrieved Matter . | . . . . . . . . . . . . . . . . . . . . . . . . . . . . . . . . . Retrieved Components . | . . . . . . . . . . . . . . . . . . . . . . . . . . . . . . . . . Parts Scanalyzed 4 | . . . . . . . 2 . 1 . . . . . 1 . . . . . . . . . . . . . . . . . Part Schematics Acquired 4 | . . . . . . . 2 . 1 . . . . . 1 . . . . . . . . . . . . . . . . . Parts Damaged . | . . . . . . . . . . . . . . . . . . . . . . . . . . . . . . . . . Bothacking | -11 -10 -10 -9 -9 -9 -9 -6 -6 -6 -6 -6 -6 -6 -5 -5 -5 -5 -5 -4 -4 -4 -4 -4 -4 -4 -3 -3 -2 -2 -2 -1 -1 ------------ Run | Yrd Mat Min Mat Sto Rec Scr Fac Was Fac Low Low Zio Dee Pro Fac Was Fac Gar Fac Was Fac Ext Cet Arc Hub Res Tes Res Qua Frg Acc Com Used RIF Installer 1 | . . . . . . . . . . . . . . . . . . 1 . . . . . . . . . . . . . . Robots Hacked 3 | . . . . . . . 1 . . . . . . . 1 . . . 1 . . . . . . . . . . . . . Non-combat 3 | . . . . . . . 1 . . . . . . . 1 . . . 1 . . . . . . . . . . . . . Combat . | . . . . . . . . . . . . . . . . . . . . . . . . . . . . . . . . . Robot Hacks Applied 3 | . . . . . . . 1 . . . . . . . 1 . . . 1 . . . . . . . . . . . . . find_chute 3 | . . . . . . . 1 . . . . . . . 1 . . . 1 . . . . . . . . . . . . . Relay Couplers Released 14 | . . . . . . . . . . . . . . . . . 3 11 . . . . . . . . . . . . . . Machine Destruction 14 | . . . . . . . . . . . . . . . . . 3 11 . . . . . . . . . . . . . . Attached 1 | . . . . . . . . . . . . . . . . . . . 1 . . . . . . . . . . . . . Fabnet Peak Effective % . | . . . . . . . . . . . . . . . . . . . . . . . . . . . . . . . . . Robots Rewired 2 | . . . . . . . . . . . . . . . . . . 2 . . . . . . . . . . . . . . Allies Hacked . | . . . . . . . . . . . . . . . . . . . . . . . . . . . . . . . . . Hacks Repelled . | . . . . . . . . . . . . . . . . . . . . . . . . . . . . . . . . . Allies | -11 -10 -10 -9 -9 -9 -9 -6 -6 -6 -6 -6 -6 -6 -5 -5 -5 -5 -5 -4 -4 -4 -4 -4 -4 -4 -3 -3 -2 -2 -2 -1 -1 -------- Run | Yrd Mat Min Mat Sto Rec Scr Fac Was Fac Low Low Zio Dee Pro Fac Was Fac Gar Fac Was Fac Ext Cet Arc Hub Res Tes Res Qua Frg Acc Com Total Allies 54 | . . 3 . 2 . . 1 . 2 . . 2 . . 1 20 1 2 2 . . 7 5 . . . . . . . . 6 Largest Group 20 | . . 3 3 2 . . 1 . 2 . . 2 2 2 1 20 20 2 1 . . 3 6 5 3 . . . . . . 6 Highest-Rated Group 718 | . . 40 40 62 . . 10 . 36 . . 61 61 61 26 718 718 218 119 . . 181 617 505 272 . . . . . . 86 Highest-Rated Ally 159 | . . 16 16 31 . . 10 . 26 . . 31 31 31 26 50 50 119 119 . . 159 159 137 96 . . . . . . 15 Initial UFD Resources 158 | . . . . . . . 23 45 45 61 61 61 61 63 63 87 87 99 103 113 113 121 123 123 123 126 144 148 158 158 . . Total Orders 8 | . . . . 5 . . . . . . . . . . . . . . . . . . . 3 . . . . . . . . ROAM 1 | . . . . . . . . . . . . . . . . . . . . . . . . 1 . . . . . . . . FOLLOW 2 | . . . . . . . . . . . . . . . . . . . . . . . . 2 . . . . . . . . EXPLORE 5 | . . . . 5 . . . . . . . . . . . . . . . . . . . . . . . . . . . . Ally Attacks 270 | . . 2 22 14 . . . . . . . . 22 13 . . 48 24 3 . . 14 38 23 14 . . . . . . 33 Total Damage 7508 | . . 28 565 187 . . . . . . . . 285 214 . . 965 955 102 . . 467 1724 739 616 . . . . . . 661 Kills 54 | . . 1 4 3 . . . . . . . . 5 1 . . 7 15 . . . 1 9 4 4 . . . . . . . Allies Corrupted 1 | . . . . . . . . . . . . . . 1 . . . . . . . . . . . . . . . . . . Allies Melted 2 | . . . . . . . . . . . . . . . . . . . . . . . . . . . . . . 2 . . Intel | -11 -10 -10 -9 -9 -9 -9 -6 -6 -6 -6 -6 -6 -6 -5 -5 -5 -5 -5 -4 -4 -4 -4 -4 -4 -4 -3 -3 -2 -2 -2 -1 -1 ------- Run | Yrd Mat Min Mat Sto Rec Scr Fac Was Fac Low Low Zio Dee Pro Fac Was Fac Gar Fac Was Fac Ext Cet Arc Hub Res Tes Res Qua Frg Acc Com Active Infowar (turns) 15887 | 45 1383 44 165 . . . 755 26 1178 150 361 347 559 342 1001 241 771 279 403 19 409 423 432 184 236 879 557 167 323 3670 101 437 Optics 6977 | . . . . . . . 755 26 583 . . . . . . . . . . . . . . . . 358 557 167 323 3670 101 437 Sensors 8515 | . . . . . . . 29 26 1178 150 361 347 154 197 821 241 713 . 351 19 367 423 432 184 236 879 557 160 323 367 . . Terrain 1015 | . . . . . . . . . . . . . . . . . . . 402 19 248 67 . 43 236 . . . . . . . Structural 3359 | . . . . . . . . . 678 1 . . . . . . 420 279 2 . . . . . . 683 557 160 323 256 . . Seismic 1637 | 45 1383 44 165 . . . . . . . . . . . . . . . . . . . . . . . . . . . . . Decoding 2855 | . . . . . . . . . . . 184 347 559 342 1001 241 181 . . . . . . . . . . . . . . . Machine Analysis 421 | . . . . . . . 421 . . . . . . . . . . . . . . . . . . . . . . . . . Cloaking 3853 | . . . . . . . . . . . . . . . . . . . . . . . . . . . . . 120 3540 101 92 Jamming 3823 | . . . . . . . . . . . . . . . . . . . . . . . . . 54 824 557 160 323 1905 . . ECM 2977 | . . . . . . . 156 24 577 . . . . . 80 . 128 . . . 222 423 405 184 97 381 172 42 22 1 . 63 Robot Analysis Total 9 | . 3 . 1 . . 3 . . 1 . . . . . 1 . . . . . . . . . . . . . . . . . Derelict Logs Recovered 6 | . . 2 . . . . . . . 1 1 . . 2 . . . . . . . . . . . . . . . . . . Drone Launches 16 | . . . . 16 . . . . . . . . . . . . . . . . . . . . . . . . . . . . Drone Recoveries 2 | . . . . 2 . . . . . . . . . . . . . . . . . . . . . . . . . . . . Decoded 0b10 Intel 35 | . . . . . . . . . . . . . . . 30 . 5 . . . . . . . . . . . . . . . Traps 3 | . . . . . . . . . . . . . . . 1 . 2 . . . . . . . . . . . . . . . Emergency Access 1 | . . . . . . . . . . . . . . . 1 . . . . . . . . . . . . . . . . . Items 23 | . . . . . . . . . . . . . . . 20 . 3 . . . . . . . . . . . . . . . Machines 4 | . . . . . . . . . . . . . . . 4 . . . . . . . . . . . . . . . . . Patrols 3 | . . . . . . . . . . . . . . . 3 . . . . . . . . . . . . . . . . . Guards 1 | . . . . . . . . . . . . . . . 1 . . . . . . . . . . . . . . . . . Exploration | -11 -10 -10 -9 -9 -9 -9 -6 -6 -6 -6 -6 -6 -6 -5 -5 -5 -5 -5 -4 -4 -4 -4 -4 -4 -4 -3 -3 -2 -2 -2 -1 -1 ------------- Run | Yrd Mat Min Mat Sto Rec Scr Fac Was Fac Low Low Zio Dee Pro Fac Was Fac Gar Fac Was Fac Ext Cet Arc Hub Res Tes Res Qua Frg Acc Com Turns Passed 18607 | 91 1466 1119 438 426 335 324 880 26 1178 150 361 347 559 342 1001 241 771 279 403 19 442 423 432 184 236 879 557 167 323 3670 101 437 Spaces Moved 28744 | 46 674 577 726 627 635 990 2010 76 2317 373 739 634 872 434 2067 239 1635 389 892 70 719 672 340 185 488 1990 814 390 725 4587 305 507 Core 44 | 30 . . . . . . 7 . . . . . . . 7 . . . . . . . . . . . . . . . . . Treads 1292 | 16 674 577 23 . . . . . . . . . . . . . . . . . . . . . . . . . . . . 2 Legs . | . . . . . . . . . . . . . . . . . . . . . . . . . . . . . . . . . Wheels . | . . . . . . . . . . . . . . . . . . . . . . . . . . . . . . . . . Hover 4913 | . . . . . . . . . . . . . 658 434 261 . . . . . . . . . . . . . . 2750 305 505 Flight 22495 | . . . 703 627 635 990 2003 76 2317 373 739 634 214 . 1799 239 1635 389 892 70 719 672 340 185 488 1990 814 390 725 1837 . . Fastest Speed 11 | 50 160 160 31 31 31 31 23 28 24 24 26 26 26 48 25 32 26 22 27 27 26 27 31 31 31 32 32 24 24 11 20 20 Average Speed 36 | 142 160 161 37 31 31 31 27 28 26 26 26 26 44 52 32 32 27 27 27 27 27 28 31 31 31 33 32 28 24 31 20 29 Slowest Speed 250 | 250 160 240 240 31 31 31 250 28 28 27 29 26 130 56 250 34 100 105 27 27 31 32 31 31 32 35 32 32 27 180 20 160 Overloaded Moves . | . . . . . . . . . . . . . . . . . . . . . . . . . . . . . . . . . Propulsion Burnouts . | . . . . . . . . . . . . . . . . . . . . . . . . . . . . . . . . . Robots Hopped 147 | . . . 14 10 12 . 16 2 24 1 1 . . . 14 . 2 . 9 2 8 3 2 . 3 4 8 . . 12 . . Potential Cave-ins 2 | . . . . . . . . . . . . . . . . . . . . . . . . . . . . . . 2 . . Cave-ins Triggered . | . . . . . . . . . . . . . . . . . . . . . . . . . . . . . . . . . Teleports 1 | . . . . . . . . . . . . . . . . . . . . . . . . . . . . . . 1 . . Exploration Rate (%) 67 | 4 96 97 84 94 89 88 67 92 65 61 87 86 81 63 64 94 50 57 33 67 25 74 75 90 70 61 84 19 78 84 12 22 Regions Visited 32 Branch Regions 17 Pre-discovered Areas 27 | . 3 1 4 2 6 1 2 . 1 . . . . . 3 . . . 1 . . . . . . 1 2 . . . . . Known Exits Taken 21 | . 1 1 1 . . . . . 1 1 1 1 1 1 . . 1 . . . 1 1 1 1 1 1 1 1 1 1 1 . Unknown Exits Taken 4 | 1 . . . 1 1 1 . . . . . . . . . . . . . . . . . . . . . . . . . . Scrap Searched 19 | . . 1 . . . 6 . . . 3 4 4 . 1 . . . . . . . . . . . . . . . . . . Spaces Dug 336 | . 9 . . . . . 28 . 64 . 7 . 3 3 39 . 24 4 23 . 10 5 1 1 14 18 9 11 5 47 6 5 Terrain Destroyed 996 | . 9 . 23 . . . 105 . 126 . 7 . 140 146 39 . 24 4 23 . 10 61 1 1 14 18 9 11 5 118 36 66 Melee 245 | . . . . . . . 28 . 31 . 7 . 3 3 39 . 24 4 23 . 10 5 1 1 14 18 9 8 5 7 2 3 Projectile 126 | . . . . . . . . . . . . . 3 . . . . . . . . . . . . . . 3 . 111 4 5 AOE 625 | . 9 . 23 . . . 77 . 95 . . . 134 143 . . . . . . . 56 . . . . . . . . 30 58 Terrain Rammed . | . . . . . . . . . . . . . . . . . . . . . . . . . . . . . . . . . Walls Destroyed . | . . . . . . . . . . . . . . . . . . . . . . . . . . . . . . . . . Machines Disabled . | . . . . . . . . . . . . . . . . . . . . . . . . . . . . . . . . . Actions | -11 -10 -10 -9 -9 -9 -9 -6 -6 -6 -6 -6 -6 -6 -5 -5 -5 -5 -5 -4 -4 -4 -4 -4 -4 -4 -3 -3 -2 -2 -2 -1 -1 --------- Run | Yrd Mat Min Mat Sto Rec Scr Fac Was Fac Low Low Zio Dee Pro Fac Was Fac Gar Fac Was Fac Ext Cet Arc Hub Res Tes Res Qua Frg Acc Com Total 35175 | 58 997 675 831 767 760 1003 2228 76 2759 422 891 760 1005 524 2301 401 1889 523 998 67 914 844 640 287 526 2139 1063 421 847 6508 326 725 Wait 4449 | . 265 41 41 59 135 4 107 . 368 51 143 85 85 60 103 162 156 77 71 . 157 105 285 76 2 52 187 8 85 1411 5 63 Move 28436 | 45 673 576 697 607 610 989 1978 72 2269 370 736 633 871 433 2042 238 1630 388 875 66 702 665 336 184 481 1982 799 389 724 4565 304 507 Hop 132 | . . . 14 9 12 . 16 1 23 1 1 . . . 11 . 2 . 8 1 8 3 1 . 3 3 6 . . 9 . . Pick Up 130 | 1 12 4 2 6 . 3 10 1 8 . . 4 4 1 2 . 2 2 . . 1 3 . 2 2 7 5 1 4 43 . . Fast Attach 190 | 7 2 . 6 5 . . 15 . 8 . 2 1 8 3 8 1 15 6 3 . 8 6 2 6 1 14 5 . 4 48 . 6 Attach 102 | . . 1 11 1 . 3 10 . 4 . 1 3 4 . 1 . 3 3 3 . 2 4 1 . 2 2 . 3 1 28 3 8 Detach 39 | . . . 2 1 . . 2 . 1 . . 1 1 . . . . 2 1 . 1 2 . . . 2 . . . 22 . 1 Swap 197 | . 12 4 4 15 1 2 10 2 9 . . 2 10 4 12 . 16 4 2 . 4 5 2 . 3 4 6 6 6 36 6 10 Drop 202 | . 1 1 18 11 2 1 13 . 8 . . 3 5 4 8 . 3 6 2 . 4 8 1 4 6 16 12 . 6 54 1 4 Fire 416 | 5 29 41 36 29 . . 7 . 9 . . . 10 14 . . . . . . . 5 . . . . . 4 . 215 4 8 Melee 609 | . . . . . . . 46 . 50 . 8 1 7 5 74 . 33 12 33 . 27 33 4 15 16 35 29 10 12 38 3 118 Ram 1 | . . . . . . . . . . . . . . . . . . . . . . . . . . . 1 . . . . . Kick . | . . . . . . . . . . . . . . . . . . . . . . . . . . . . . . . . . Crush 10 | . 3 7 . . . . . . . . . . . . . . . . . . . . . . . . . . . . . . Escape Stasis 56 | . . . . . . . 12 . . . . . . . . . . . . . . . . . . . . . 5 39 . . Rewire 14 | . . . . . . . . . . . . . . . . . . 14 . . . . . . . . . . . . . . Trap 113 | . . . . . . . 2 . 2 . . . . . 40 . 29 . . . . 5 . . . 22 13 . . . . . Miscellaneous 79 | . . . . 24 . 1 . . . . . 27 . . . . . 9 . . . . 8 . 10 . . . . . . . Route ------- -11/Scrapyard -10/Materials (discovered 5 exits: *Mat x3 / *Min / Sub) -10/Mines (discovered 3 exits: *Mat x2 / [*Exi]) -9/Materials (discovered 6 exits: *Mat x3 / *Min x2 / *Sto) -9/Storage (discovered 2 exits: *Mat / *Rec) -9/Recycling (discovered 2 exits: *Fac / *Scr) -9/Scraptown (discovered 2 exits: *Fac x2) -6/Factory (discovered 6 exits: *Fac x4 / *Low x2) -6/Waste -6/Factory (discovered 6 exits: Fac x4 / *Low x2) -6/Lower Caves -6/Lower Caves -6/Zion (discovered 2 exits: *Dee / *Pro) -6/Deep Caves -5/Proximity Caves -5/Factory (discovered 6 exits: *Fac x4 / *Upp x2) -5/Waste -5/Factory (discovered 6 exits: *Fac x3 / *Upp x2 / Gar) -5/Garrison (discovered 3 exits: *Fac x3) -4/Factory (discovered 6 exits: *Res x2 / *Upp x2 / *Ext x2) -4/Waste -4/Factory (discovered 4 exits: Res x2 / Upp / *Ext) -4/Extension (discovered 3 exits: *Res x2 / *Cet) -4/Cetus (discovered 2 exits: *Res / *Arc) -4/Archives (discovered 3 exits: *Res / *Hub x2) -4/Hub_04(d) (discovered 2 exits: *Res x2) -3/Research (discovered 6 exits: *Res x3 / *Arm / *Tes x2) -3/Testing -2/Research (discovered 4 exits: Acc x2 / *Qua x2) -2/Quarantine (discovered 2 exits: *Sec / *Frg) -2/Protoforge -1/Access -1/Command History --------- Turn | Location | Event 54 | -11/Scrapyard | Discovered new exit (range 14) 92 | -11/Scrapyard | Entered Materials 302 | -10/Materials | Build established: Mutant 446 | -10/Materials | Discovered new exit (range 10) 726 | -10/Materials | Discovered new exit (range 16) 893 | -10/Materials | Repaired Lgt. Treads 920 | -10/Materials | Repaired Imp. Medium Laser 987 | -10/Materials | Discovered new exit (range 10) 1231 | -10/Materials | Learned 4 Subcaves zone layouts 1296 | -10/Materials | Identified exit to Materials 1296 | -10/Materials | Identified exit to Mines 1350 | -10/Materials | Discovered exit to Materials (range 7) 1353 | -10/Materials | Learned location of Storage (-9) 1459 | -10/Materials | Learned location of Recycling (-9) 1527 | -10/Materials | Identified exit to Subcaves 1558 | -10/Materials | Entered Mines 1559 | -10/Mines | Met a Derelict bent on vengeance 1849 | -10/Mines | Deemed a non-threat by the Exiles lab entrance 1849 | -10/Mines | Discovered new exit (range 5) 1964 | -10/Mines | Learned Materials stockpile data 2153 | -10/Mines | Discovered exit to Materials (range 6) 2192 | -10/Mines | Found a Scrap Suit stashed away for nefarious purposes 2201 | -10/Mines | Learned location of Zion (-6) 2208 | -10/Mines | Discovered exit to Materials (range 9) 2301 | -10/Mines | Core integrity fell below 50% 2445 | -10/Mines | Assisted by bots powering up and referring to "LRC-V3" 2677 | -10/Mines | Entered Materials 2677 | -9/Materials | Accompanied by 3 allies 2677 | -9/Materials | Evolved 2 slots: Propulsion x2 2863 | -9/Materials | Discovered new exit (range 11) 2952 | -9/Materials | Discovered new exit (range 13) 2955 | -9/Materials | Learned Storage emergency access door positions 2992 | -9/Materials | Learned 4 Recycling zone layouts 3010 | -9/Materials | Discovered new exit (range 15) 3017 | -9/Materials | Identified exit to Materials 3032 | -9/Materials | Learned location of Mines (-9) 3038 | -9/Materials | Build established: Scavenger-Sprinter 3042 | -9/Materials | Discovered new exit (range 13) 3048 | -9/Materials | Learned Storage security intel 3096 | -9/Materials | Identified exit to Mines 3096 | -9/Materials | Identified exit to Storage 3111 | -9/Materials | Central database locked down 3115 | -9/Materials | Entered Storage 3194 | -9/Storage | Met a pair of Derelict thieves 3252 | -9/Storage | Lost 11 allies 3343 | -9/Storage | Discovered new exit (range 3) 3360 | -9/Storage | Learned 2 Materials zone layouts 3379 | -9/Storage | Core integrity fell below 50% 3454 | -9/Storage | Learned Materials terminal intel 3469 | -9/Storage | Learned location of 1 exit from Storage 3504 | -9/Storage | Build established: Sprinter 3541 | -9/Storage | Entered Recycling 3542 | -9/Recycling | Identified exit to Factory 3724 | -9/Recycling | Learned 2 Materials zone layouts 3732 | -9/Recycling | Scanned before Scraplab entrance 3737 | -9/Recycling | Entered Scraplab 3740 | -9/Recycling | Discovered new exit (range 2) 3760 | -9/Recycling | Learned Storage trap positions 3786 | -9/Recycling | Learned Materials stockpile data 3814 | -9/Recycling | Learned location of 1 exit from Storage 3815 | -9/Recycling | Learned Materials stockpile data 3816 | -9/Recycling | Learned 2 Storage zone layouts 3818 | -9/Recycling | Learned 2 Materials zone layouts 3876 | -9/Recycling | Entered Scraptown 3876 | -9/Scraptown | System corruption cleaned by C-Scrubber 3951 | -9/Scraptown | Discovered new exit (range 11) 3979 | -9/Scraptown | Visited Cave Peace 3983 | -9/Scraptown | Visited Fellowship of the Rings 3988 | -9/Scraptown | Visited UFD Registry 3988 | -9/Scraptown | Registered with UFD as "Roughcell" 3994 | -9/Scraptown | Visited Symbiants 3997 | -9/Scraptown | Visited Comm Corps 4015 | -9/Scraptown | Visited TADAMA 4018 | -9/Scraptown | Visited Bundlers 4043 | -9/Scraptown | Visited Assassins FH 4063 | -9/Scraptown | Visited Science Guys 4073 | -9/Scraptown | Visited A0-MCA Data Center 4075 | -9/Scraptown | Given a C+ rating by A0-MCA 4078 | -9/Scraptown | Found A0-MCA's Component Scanner 4101 | -9/Scraptown | Visited Scrapoid Research Area 4106 | -9/Scraptown | Visited Scrapoid Pod Storage 4111 | -9/Scraptown | Visited Derelict Rescue Squad 4115 | -9/Scraptown | Visited Science Testing Area 4120 | -9/Scraptown | Visited Analyses Database 4131 | -9/Scraptown | Visited Abandonware Association 4134 | -9/Scraptown | Learned abandonware demo "POISON.EXE" 4142 | -9/Scraptown | Visited Modified Component R&D 4182 | -9/Scraptown | Met Optimus 4182 | -9/Scraptown | Accepted into 0bPrime 4199 | -9/Scraptown | Discovered new exit (range 3) 4200 | -9/Scraptown | Entered Factory 4200 | -6/Factory | Evolved 6 slots: Propulsion x2, Utility x4 4520 | -6/Factory | Discovered new exit (range 19) 4527 | -6/Factory | Identified exit to Factory 4550 | -6/Factory | Search patrols dispatched 4576 | -6/Factory | Repaired Imp. Light Armor Plating 4603 | -6/Factory | Loaded intel: 8 recycling unit locations 4603 | -6/Factory | Found Prototype Processor 4603 | -6/Factory | Identified Exp. Targeting Computer 4657 | -6/Factory | Lost 3 parts (1p2u) 4683 | -6/Factory | Discovered new exit (range 16) 4725 | -6/Factory | Discovered exit to Factory (range 5) 4789 | -6/Factory | Spotted B-75 Beast 4796 | -6/Factory | Learned location of Protoforge (-2) 4798 | -6/Factory | Lost 3 parts (1n2w) 4806 | -6/Factory | Identified exit to Lower Caves 4884 | -6/Factory | Learned Extension security intel 4897 | -6/Factory | Core integrity fell below 50% 4900 | -6/Factory | Search patrols dispatched 4909 | -6/Factory | Learned Extension stockpile data 4947 | -6/Factory | Learned Extension garrison access intel 4984 | -6/Factory | Learned Extension emergency access door positions 5080 | -6/Factory | Manually triggered Chute Trap 5080 | -6/Factory | Sucked down chute 5080 | -6/Factory | Entered Waste 5087 | -6/Waste | Spotted C-40 Crusher 5087 | -6/Waste | Spotted C-40 Crusher 5089 | -6/Waste | Spotted C-40 Crusher 5089 | -6/Waste | Spotted C-40 Crusher 5095 | -6/Waste | EMP discharged 5095 | -6/Waste | System corruption reached 10% 5095 | -6/Waste | Spotted C-40 Crusher 5103 | -6/Waste | Discovered new exit (range 10) 5103 | -6/Waste | Spotted C-40 Crusher 5105 | -6/Waste | Identified exit to Factory 5106 | -6/Waste | Entered Factory 5166 | -6/Factory | Loaded intel: 8 recycling unit locations 5338 | -6/Factory | Repaired Nuclear Pulse Thruster 5435 | -6/Factory | Build established: Scout 5463 | -6/Factory | Repaired Broken Adv. Gravity Neutralizer? 5501 | -6/Factory | Watched by a mysterious "MATRIX" hacker. 5642 | -6/Factory | Repaired Imp. Datajack 5879 | -6/Factory | Learned 2 Proximity Caves zone layouts 5958 | -6/Factory | Learned Extension security intel 6064 | -6/Factory | Learned 4 Extension zone layouts 6284 | -6/Factory | Entered Lower Caves 6293 | -6/Lower Caves | Encountered a Warlord checkpoint 6314 | -6/Lower Caves | Learned Factory stockpile data 6417 | -6/Lower Caves | Attracted the attention of an 0b10 checkpoint 6422 | -6/Lower Caves | Discovered new exit (range 14) 6426 | -6/Lower Caves | Identified exit to Lower Caves 6434 | -6/Lower Caves | Entered another Lower Caves area 6453 | -6/Lower Caves | Attacked by a delusional Derelict stockpiling parts 6495 | -6/Lower Caves | Spotted B-75 Beast 6567 | -6/Lower Caves | Discovered new exit (range 14) 6586 | -6/Lower Caves | Build established: Sprinter 6600 | -6/Lower Caves | Encountered a Warlord checkpoint 6795 | -6/Lower Caves | Identified exit to Zion 6795 | -6/Lower Caves | Entered Zion 6807 | -6/Zion | Discovered new exit (range 15) 6811 | -6/Zion | Identified exit to Proximity Caves 6818 | -6/Zion | Found Prototype Special Weapon 6818 | -6/Zion | Identified RU-N14's Throwing Claymores 6821 | -6/Zion | Found RU-N14's Throwing Claymores 6824 | -6/Zion | Found RU-N14's Throwing Claymores 6825 | -6/Zion | Found RU-N14's Throwing Claymores 6850 | -6/Zion | Found Unknown Piercing Weapon 6850 | -6/Zion | Identified CR-A16's Pointy Stick 6898 | -6/Zion | Received a hallucinogenic algorithm 6909 | -6/Zion | Turned away by Imprinter 6945 | -6/Zion | Gained Derelict followers 7069 | -6/Zion | Discovered new exit (range 3) 7069 | -6/Zion | Saw the warning signs outside the Deep Caves entrance 7070 | -6/Zion | Identified exit to Deep Caves 7142 | -6/Zion | Entered Deep Caves 7142 | -6/Deep Caves | Accompanied by 2 allies 7248 | -6/Deep Caves | Attacked by Z-Imprinter 7248 | -6/Deep Caves | Attached CPS modules to Z-Imprinter. 7252 | -6/Deep Caves | Destroyed Z-Imprinter 7258 | -6/Deep Caves | Attached CPS modules to 1Z-KV7(z). 7270 | -6/Deep Caves | Found Zio. Metafield Generator 7356 | -6/Deep Caves | Z-Facility disabled 7546 | -6/Deep Caves | Build established: Scavenger-Mutant 7570 | -6/Deep Caves | Found Surveybot 24 Chip 7643 | -6/Deep Caves | Discovered new exit (range 6) 7645 | -6/Deep Caves | Identified exit to Proximity Caves 7701 | -6/Deep Caves | Entered Proximity Caves 7701 | -5/Proximity Caves | Accompanied by 2 allies 7904 | -5/Proximity Caves | Learned location of 1 exit from Factory 7977 | -5/Proximity Caves | Lost 3 parts (2n1w) 7985 | -5/Proximity Caves | Attracted the attention of an 0b10 base 7994 | -5/Proximity Caves | Learned 4 Factory zone layouts 8038 | -5/Proximity Caves | Discovered exit to Factory (range 4) 8043 | -5/Proximity Caves | Entered Factory 8043 | -5/Factory | Evolved 2 slots: Power x1, Utility x1 8044 | -5/Factory | Identified exit to Upper Caves 8045 | -5/Factory | Identified exit to Factory 8102 | -5/Factory | Loaded intel: 8 recycling unit locations 8466 | -5/Factory | Fabricated Enh. Fission Core? 8481 | -5/Factory | Spotted B-75 Beast 8578 | -5/Factory | Build established: Scavenger-Sprinter 8607 | -5/Factory | Discovered exit to Factory (range 7) 8817 | -5/Factory | Learned location of Upper Caves (-5) 8858 | -5/Factory | Learned Armory emergency access door positions 8891 | -5/Factory | Learned Research repair station intel 8923 | -5/Factory | Learned 4 Extension zone layouts 8943 | -5/Factory | Search patrols dispatched 8956 | -5/Factory | Learned Extension trap positions 8989 | -5/Factory | Learned 8 Factory zone layouts 8999 | -5/Factory | Discovered exit to Factory (range 8) 9044 | -5/Factory | Sucked down chute 9044 | -5/Factory | Entered Waste 9045 | -5/Waste | Joined by Warlord forces that had cleared the area 9072 | -5/Waste | Lost 3 parts (3n) 9123 | -5/Waste | Discovered new exit (range 16) 9141 | -5/Waste | Identified exit to Factory 9285 | -5/Waste | Entered Factory 9285 | -5/Factory | Accompanied by 20 allies 9304 | -5/Factory | Loaded intel: 8 recycling unit locations 9353 | -5/Factory | Lost 7 allies 9431 | -5/Factory | Discovered exit to Upper Caves (range 16) 9475 | -5/Factory | Identified exit to Garrison 9576 | -5/Factory | Discovered exit to Factory (range 6) 9580 | -5/Factory | Fabricated Lrn. Terrain Scanner? 9823 | -5/Factory | Repaired Nuclear Pulse Array+ 9853 | -5/Factory | Discovered exit to Factory (range 9) 9942 | -5/Factory | Identified exit to Garrison 9987 | -5/Factory | Learned Armory trap positions 10049 | -5/Factory | Learned 2 Proximity Caves zone layouts 10056 | -5/Factory | Entered Garrison 10072 | -5/Garrison | Garrison Relay disabled 10076 | -5/Garrison | Lost 8 parts (1p5n1u1w) 10103 | -5/Garrison | Phase Generator disabled 10118 | -5/Garrison | Rewired Executioner 10126 | -5/Garrison | Rewired Striker 10154 | -5/Garrison | Discovered exit to Factory (range 52) 10154 | -5/Garrison | Discovered exit to Factory (range 86) 10154 | -5/Garrison | Discovered exit to Factory (range 84) 10157 | -5/Garrison | Triggered checkpoint 10161 | -5/Garrison | Garrison Relay disabled 10210 | -5/Garrison | Triggered checkpoint 10213 | -5/Garrison | Spotted B-75 Beast 10213 | -5/Garrison | Triggered checkpoint 10214 | -5/Garrison | Destroyed B-75 Beast 10287 | -5/Garrison | Installed Relay Interface Framework 10296 | -5/Garrison | Garrison Relay disabled 10335 | -5/Garrison | Entered Factory 10335 | -4/Factory | Accompanied by 1 ally 10335 | -4/Factory | Evolved 2 slots: Utility x2 10425 | -4/Factory | Discovered new exit (range 18) 10430 | -4/Factory | Loaded intel: 8 recycling unit locations 10486 | -4/Factory | Discovered new exit (range 20) 10507 | -4/Factory | Identified exit to Upper Caves 10585 | -4/Factory | Identified exit to Extension 10637 | -4/Factory | Discovered new exit (range 23) 10682 | -4/Factory | Build established: Scavenger-Scout 10694 | -4/Factory | Learned location of Extension (-4) 10738 | -4/Factory | Sucked down chute 10738 | -4/Factory | Entered Waste 10746 | -4/Waste | Spotted C-40 Crusher 10748 | -4/Waste | Spotted C-40 Crusher 10749 | -4/Waste | Spotted C-40 Crusher 10750 | -4/Waste | Spotted C-40 Crusher 10751 | -4/Waste | Discovered new exit (range 23) 10753 | -4/Waste | EMP discharged 10753 | -4/Waste | Spotted C-40 Crusher 10757 | -4/Waste | Identified exit to Factory 10757 | -4/Waste | Entered Factory 10762 | -4/Factory | Targeted by mysterious "MATRIX" hacker. 10777 | -4/Factory | Allied Derelicts emerged from ambush trap array 10779 | -4/Factory | Discovered new exit (range 17) 10792 | -4/Factory | Loaded intel: 8 recycling unit locations 10902 | -4/Factory | Lost 5 parts (3p1n1u) 10912 | -4/Factory | Discovered new exit (range 20) 10991 | -4/Factory | Spotted B-86 Titan 11007 | -4/Factory | Search patrols dispatched 11199 | -4/Factory | Entered Extension 11200 | -4/Extension | Identified exit to Research 11201 | -4/Extension | Loaded intel: 26 trap records 11216 | -4/Extension | Rescued a captive Derelict 11338 | -4/Extension | Build established: Hacker-Sprinter 11339 | -4/Extension | Rescued a captive Derelict 11341 | -4/Extension | Rescued a captive Derelict 11418 | -4/Extension | Lost 3 parts (2u1w) 11420 | -4/Extension | Lost 3 allies 11448 | -4/Extension | Spotted B-86 Titan 11450 | -4/Extension | Spotted B-86 Titan 11458 | -4/Extension | Loaded intel: 1 recycling unit location 11474 | -4/Extension | Rescued a captive Derelict 11475 | -4/Extension | Rescued a captive Derelict 11595 | -4/Extension | Rescued A7 11608 | -4/Extension | Discovered exit to Research (range 10) 11609 | -4/Extension | Discovered new exit (range 6) 11610 | -4/Extension | Identified exit to Cetus 11622 | -4/Extension | Entered Cetus 11622 | -4/Cetus | Accompanied by 2 allies (A7) 11627 | -4/Cetus | Acquired a Cetus Manufacturing Module code from A7 11633 | -4/Cetus | Spotted Cetus Guard 11633 | -4/Cetus | Spotted Cetus Guard 11633 | -4/Cetus | Spotted Cetus Guard 11642 | -4/Cetus | Spotted Cetus Guard 11656 | -4/Cetus | Discovered new exit (range 16) 11660 | -4/Cetus | Identified exit to Archives 11816 | -4/Cetus | Started Cetus Manufacturing Module 11841 | -4/Cetus | Manufactured an Enhanced Grunt 11866 | -4/Cetus | Manufactured an Enhanced Grunt 11875 | -4/Cetus | Escorted A7 to Cetus Mainframe 11891 | -4/Cetus | Manufactured an Enhanced Grunt 11916 | -4/Cetus | Manufactured an Enhanced Grunt 11932 | -4/Cetus | Build established: Trapper-Sprinter 11941 | -4/Cetus | Manufactured an Enhanced Grunt 11959 | -4/Cetus | Spotted Cetus Guard 11959 | -4/Cetus | Spotted Cetus Guard 11992 | -4/Cetus | Spotted Cetus Guard 12007 | -4/Cetus | Discovered exit to Research (range 15) 12009 | -4/Cetus | Met Revision 17 12054 | -4/Cetus | Entered Archives 12054 | -4/Archives | Accompanied by 5 allies (A7) 12059 | -4/Archives | Received a hacking code to weaken MAIN.C 12118 | -4/Archives | Discovered new exit (range 15) 12142 | -4/Archives | Discovered new exit (range 15) 12148 | -4/Archives | Discovered exit to Research (range 16) 12217 | -4/Archives | Identified exit to Hub_04(d) 12238 | -4/Archives | Entered Hub_04(d) 12238 | -4/Hub_04(d) | Accompanied by 3 allies 12283 | -4/Hub_04(d) | Discovered exit to Research (range 9) 12283 | -4/Hub_04(d) | Discovered exit to Research (range 13) 12335 | -4/Hub_04(d) | Network Hub disabled 12348 | -4/Hub_04(d) | Network Hub disabled 12358 | -4/Hub_04(d) | Spotted Lightning 12359 | -4/Hub_04(d) | Spotted Lightning 12398 | -4/Hub_04(d) | Network Hub disabled 12416 | -4/Hub_04(d) | Network Hub disabled 12425 | -4/Hub_04(d) | Spotted Lightning 12474 | -4/Hub_04(d) | Entered Research 12474 | -3/Research | Evolved 2 slots: Utility x2 12475 | -3/Research | Loaded intel: 4 repair station locations 12500 | -3/Research | Discovered new exit (range 10) 12505 | -3/Research | Identified exit to Research 12674 | -3/Research | Revision forces began assault on 0b10 12787 | -3/Research | Identified exit to Armory 12787 | -3/Research | Identified exit to Testing 12812 | -3/Research | Spotted B-86 Titan 12896 | -3/Research | Loaded intel: 5 recycling unit locations 12926 | -3/Research | Learned Testing emergency access door positions 12964 | -3/Research | Learned Testing stockpile data 12992 | -3/Research | Learned 4 Access zone layouts 13022 | -3/Research | Learned 8 Research zone layouts 13023 | -3/Research | Learned location of 1 exit from Armory 13027 | -3/Research | Learned Access garrison access intel 13031 | -3/Research | Discovered exit to Research (range 10) 13040 | -3/Research | Learned location of 1 exit from Research 13103 | -3/Research | Met up with Revision 17++ 13174 | -3/Research | Research terminal network offline 13303 | -3/Research | Found Exp. Sensor Array 13353 | -3/Research | Entered Testing 13433 | -3/Testing | Discovered exit to Research (range 11) 13435 | -3/Testing | Unchained authorized (6S-H0T) 13623 | -3/Testing | Destroyed 6S-H0T 13634 | -3/Testing | Found 6S-H0T's Six Shooter 13638 | -3/Testing | Found 6S-H0T's SS Cartridge 13658 | -3/Testing | Found Disintegrator 13674 | -3/Testing | Found Null Cannon 13701 | -3/Testing | Found Exp. ECM Suite 13735 | -3/Testing | Learned Quarantine security intel 13755 | -3/Testing | Spotted PH-V3LZ1UI0UO 13791 | -3/Testing | Spotted Striker 13802 | -3/Testing | Spotted Striker 13847 | -3/Testing | Learned 4 Access zone layouts 13865 | -3/Testing | Learned Access repair station intel 13873 | -3/Testing | Learned Research trap positions 13880 | -3/Testing | Learned Research stockpile data 13910 | -3/Testing | Entered Research 13910 | -2/Research | Evolved 2 slots: Propulsion x2 13911 | -2/Research | Identified exit to Access 13913 | -2/Research | Loaded intel: 66 trap records 13935 | -2/Research | Build established: Infiltrator-Ninja 13947 | -2/Research | Identified exit to Quarantine 13959 | -2/Research | Spotted B-90 Cyclops 14052 | -2/Research | Loaded intel: 5 recycling unit locations 14077 | -2/Research | Entered Quarantine 14088 | -2/Quarantine | Cryocooling Duct disabled 14103 | -2/Quarantine | Ambient heat levels rising (+20) 14103 | -2/Quarantine | Non-combat units ordered to evacuate 14163 | -2/Quarantine | Found Alien Artifact 14173 | -2/Quarantine | Found Alien Artifact 14173 | -2/Quarantine | Identified Dimensional Node Initializer 14173 | -2/Quarantine | Initialized slip node 14175 | -2/Quarantine | Identified Subatomic Replicator 14175 | -2/Quarantine | Used Subatomic Replicator to create Alien Artifact 14180 | -2/Quarantine | Found Dimensional Node Initializer 14194 | -2/Quarantine | Unchained authorized (DW-4LL) 14262 | -2/Quarantine | Identified Supercharged TR 14266 | -2/Quarantine | Found Alien Artifact 14266 | -2/Quarantine | Identified Core Reset Matrix 14266 | -2/Quarantine | Used Core Reset Matrix 14270 | -2/Quarantine | Detected hypermatrix surge 14270 | -2/Quarantine | Sensed 9 artifacts in vicinity 14277 | -2/Quarantine | Spotted Alpha 7 14380 | -2/Quarantine | Spotted Fortress 14397 | -2/Quarantine | Discovered new exit (range 5) 14397 | -2/Quarantine | Discovered new exit (range 6) 14398 | -2/Quarantine | Identified exit to Section 7 14399 | -2/Quarantine | Identified exit to Protoforge 14400 | -2/Quarantine | Entered Protoforge 14401 | -2/Protoforge | Sensed 2 artifacts in vicinity 14418 | -2/Protoforge | Spotted Hotshot 14450 | -2/Protoforge | Spotted Hotshot 14459 | -2/Protoforge | Spotted Hotshot 14459 | -2/Protoforge | Spotted Hotshot 14472 | -2/Protoforge | Discovered exit to Access (range 14) 14543 | -2/Protoforge | Spotted Immortal 14545 | -2/Protoforge | Spotted Immortal 14581 | -2/Protoforge | Lost 4 parts (2n2u) 14581 | -2/Protoforge | Spotted EXE-6 14581 | -2/Protoforge | Spotted EXE-6 14588 | -2/Protoforge | Superfortress began startup sequence 14591 | -2/Protoforge | Spotted SKR-2 14595 | -2/Protoforge | UFD initiated attack on Protoforge (Readiness: Maximal) 14595 | -2/Protoforge | Loaded intel: 3 recycling unit locations 14616 | -2/Protoforge | Found Exp. Core Analyzer 14630 | -2/Protoforge | Initialized slip node 14631 | -2/Protoforge | Optimus greeted in Protoforge 14657 | -2/Protoforge | Warped through subspace to slip node 14658 | -2/Protoforge | Optimus attacked Superfortress 14660 | -2/Protoforge | Core integrity fell below 50% 14664 | -2/Protoforge | P-80 Master assimilated allied 02F07-D 14670 | -2/Protoforge | Spotted Immortal 14687 | -2/Protoforge | Found Exp. Cloaking Device 14689 | -2/Protoforge | Found Cep. Antimissile System 14690 | -2/Protoforge | Lost 5 parts (3n2u) 14700 | -2/Protoforge | Lost 5 allies 14756 | -2/Protoforge | Met 7R-MNS 14798 | -2/Protoforge | Spotted Striker 14813 | -2/Protoforge | Spotted Striker 14813 | -2/Protoforge | Destroyed Striker 14852 | -2/Protoforge | Found Cep. Antimissile System 14864 | -2/Protoforge | Lost 3 parts (2u1w) 14883 | -2/Protoforge | Additional patrols dispatched to research labs 15034 | -2/Protoforge | Spotted V912-f 15034 | -2/Protoforge | Spotted V106-s 15034 | -2/Protoforge | Found Cep. Zero-point Core 15048 | -2/Protoforge | Spotted Immortal 15048 | -2/Protoforge | Spotted Immortal 15109 | -2/Protoforge | Destroyed Immortal 15116 | -2/Protoforge | Spotted Decapitator 15116 | -2/Protoforge | Spotted Decapitator 15116 | -2/Protoforge | Spotted Decapitator 15131 | -2/Protoforge | UFD reported confirmed Drillbomb installation 15131 | -2/Protoforge | Found Cep. Smart ZDS 15133 | -2/Protoforge | Found Cep. Rapid Grenade Launcher 15144 | -2/Protoforge | Destroyed Decapitator 15144 | -2/Protoforge | Destroyed Decapitator 15149 | -2/Protoforge | Destroyed Decapitator 15154 | -2/Protoforge | Build established: Scavenger-Sprinter 15154 | -2/Protoforge | Found Cep. Concussive Dispersal Blaster 15157 | -2/Protoforge | Found Exp. Terror Saw 15200 | -2/Protoforge | UFD reported confirmed Drillbomb installation 15208 | -2/Protoforge | Found Crosscalibrator 15346 | -2/Protoforge | Spotted Decapitator 15346 | -2/Protoforge | Spotted Decapitator 15346 | -2/Protoforge | Spotted V306-m 15346 | -2/Protoforge | Spotted Decapitator 15361 | -2/Protoforge | Destroyed V306-m 15368 | -2/Protoforge | Found Cep. Combat Aerolev Unit 15391 | -2/Protoforge | Found Faulty Cep. Combat Aerolev Unit 15414 | -2/Protoforge | Found Cep. Fieldthrust Drive 15423 | -2/Protoforge | Found Faulty Cep. Fieldthrust Drive 15462 | -2/Protoforge | Found Faulty Cep. Gyrokinetic System 15477 | -2/Protoforge | Found Faulty Cep. Gyrokinetic System 15518 | -2/Protoforge | Found Faulty Cep. Combat Aerolev Unit 15556 | -2/Protoforge | Found Faulty Cep. Gyrokinetic System 15575 | -2/Protoforge | Forge Plexus network access discovered 15583 | -2/Protoforge | Found Faulty Cep. Zero-point Core 15703 | -2/Protoforge | Found Cep. Antigrav Storage Unit 15706 | -2/Protoforge | Spotted V535-h 15706 | -2/Protoforge | Spotted V798-y 15707 | -2/Protoforge | Found Cep. Matter Streamer 15710 | -2/Protoforge | Found Cep. Chromion Battery 15711 | -2/Protoforge | Found Cep. NT7 Matterbank 15918 | -2/Protoforge | Destroyed Immortal 15986 | -2/Protoforge | Destroyed Immortal 16136 | -2/Protoforge | Found Exp. Jetlance 16139 | -2/Protoforge | Found Cep. Deflector Sword 16145 | -2/Protoforge | Found Cep. Lightning Penetrator 16149 | -2/Protoforge | Found Cep. Helical Railcannon 16154 | -2/Protoforge | Found Cep. Plasma Driver 16174 | -2/Protoforge | Spotted Executioner 16203 | -2/Protoforge | Spotted Decapitator 16203 | -2/Protoforge | Spotted Decapitator 16203 | -2/Protoforge | Spotted Decapitator 16208 | -2/Protoforge | Destroyed Decapitator 16208 | -2/Protoforge | Destroyed Decapitator 16210 | -2/Protoforge | Destroyed Decapitator 16220 | -2/Protoforge | Found Cep. Network Penetrator 16278 | -2/Protoforge | Spotted Immortal 16278 | -2/Protoforge | Spotted Immortal 16390 | -2/Protoforge | Found Cep. Nanofilaments [Endoweave] 16390 | -2/Protoforge | Installed Cep. Nanofilaments [Endoweave], 5 resistances modified: KI +10%, TH +10%, EX -50%, S -20%, P +20% 16409 | -2/Protoforge | Spotted AP7-3 16409 | -2/Protoforge | Spotted AP7-3 16420 | -2/Protoforge | Found Cep. Countertargeting System 16427 | -2/Protoforge | Found Cep. Melee Reflex Suite 16437 | -2/Protoforge | Destroyed AP7-3 16480 | -2/Protoforge | Destroyed AP7-3 16500 | -2/Protoforge | Found Cep. Cloak Mesh 16504 | -2/Protoforge | Found Faulty Cep. Cloak Mesh 16506 | -2/Protoforge | Found Cep. Core Analysis Suite 16507 | -2/Protoforge | Found Cep. Core Analysis Suite 16523 | -2/Protoforge | Found Femtoactuators 16528 | -2/Protoforge | Found Cep. Networked Targeting System 16532 | -2/Protoforge | Found Faulty Femtoactuators 16534 | -2/Protoforge | Found Cep. Weapon Articulator 16554 | -2/Protoforge | Spotted V775-e 16554 | -2/Protoforge | Spotted V866-x 16555 | -2/Protoforge | Spotted Immortal 16576 | -2/Protoforge | Spotted V033-i 16586 | -2/Protoforge | Spotted Immortal 16628 | -2/Protoforge | Destroyed Immortal 16678 | -2/Protoforge | Destroyed Immortal 16682 | -2/Protoforge | Found Cep. Antimissile System 16723 | -2/Protoforge | Destroyed Immortal 16734 | -2/Protoforge | Destroyed Immortal 16742 | -2/Protoforge | Found Cep. Antimissile System 16745 | -2/Protoforge | Found Exp. Melee Analysis Suite 16756 | -2/Protoforge | Found Exp. Cloaking Device 16842 | -2/Protoforge | Found Cep. RG22 Armor 16845 | -2/Protoforge | Found Cep. Reaction Jets 16847 | -2/Protoforge | Found Faulty Cep. Reaction Jets 16867 | -2/Protoforge | Found Cep. Energy Mantle 16869 | -2/Protoforge | Found Faulty Cep. RG22 Armor 16874 | -2/Protoforge | Found Faulty Cep. RG22 Armor 16921 | -2/Protoforge | Found Exp. Jetlance 16928 | -2/Protoforge | Found Cep. Variable Chargecaster 16998 | -2/Protoforge | UFD reported confirmed Drillbomb installation 17073 | -2/Protoforge | UFD reported confirmed Drillbomb installation 17207 | -2/Protoforge | Spotted V710-s 17207 | -2/Protoforge | Found Faulty Cep. Zero-point Core 17245 | -2/Protoforge | Build established: Sprinter 17250 | -2/Protoforge | Spotted V808-t 17253 | -2/Protoforge | Spotted V428-w 17392 | -2/Protoforge | Destroyed V428-w 17533 | -2/Protoforge | Spotted Striker 17533 | -2/Protoforge | Spotted Executioner 17575 | -2/Protoforge | Spotted Executioner 17691 | -2/Protoforge | Spotted Striker 17720 | -2/Protoforge | Spotted Executioner 17720 | -2/Protoforge | Spotted Executioner 17776 | -2/Protoforge | Spotted Executioner 17776 | -2/Protoforge | Spotted Executioner 17779 | -2/Protoforge | Spotted Striker 17786 | -2/Protoforge | Spotted Executioner 17788 | -2/Protoforge | Spotted Striker 17789 | -2/Protoforge | Spotted Executioner 17790 | -2/Protoforge | Spotted Striker 17790 | -2/Protoforge | Spotted Executioner 17853 | -2/Protoforge | Lost 7 allies 17862 | -2/Protoforge | UFD reported confirmed Drillbomb installation 17864 | -2/Protoforge | Spotted Striker 17865 | -2/Protoforge | Spotted Striker 17874 | -2/Protoforge | Spotted Striker 17878 | -2/Protoforge | Spotted Striker 17880 | -2/Protoforge | Spotted Striker 17889 | -2/Protoforge | Build established: Gladiator 17928 | -2/Protoforge | Spotted Executioner 17933 | -2/Protoforge | Spotted Striker 17969 | -2/Protoforge | Lost 7 allies 18019 | -2/Protoforge | Spotted Executioner 18058 | -2/Protoforge | Spotted Executioner 18070 | -2/Protoforge | Entered Access 18070 | -1/Access | Evolved 2 slots: Power x1, Utility x1 18082 | -1/Access | Spotted Executioner 18090 | -1/Access | Identified exit to Command 18102 | -1/Access | Spotted B-99 Colossus 18137 | -1/Access | Unchained authorized (DW-4LL) 18171 | -1/Access | Entered Command 18181 | -1/Command | Phase Generator disabled 18250 | -1/Command | Spotted B-99 Colossus 18261 | -1/Command | Spotted M Guard 18261 | -1/Command | Spotted M Guard 18293 | -1/Command | Spotted Combat Programmer 18293 | -1/Command | Spotted Combat Programmer 18306 | -1/Command | Destroyed Combat Programmer 18314 | -1/Command | Destroyed Combat Programmer 18382 | -1/Command | System corruption reached 10% 18416 | -1/Command | Destroyed M Guard 18416 | -1/Command | All MAIN.C guards destroyed 18421 | -1/Command | First assault squad dispatched 18427 | -1/Command | Met MAIN.C 18431 | -1/Command | 0b10 Conduit disabled 18438 | -1/Command | Lost 6 parts (3n3u) 18449 | -1/Command | Destroyed MAIN.C Shell 18451 | -1/Command | MAIN.C activated Command garrisons 18554 | -1/Command | System corruption reached 30% 18563 | -1/Command | Core integrity fell below 50% 18575 | -1/Command | Emitted hypermatrix ping 18580 | -1/Command | Assembled emerged from beneath the floor 18588 | -1/Command | Core integrity fell below 20% 18603 | -1/Command | Found Prototype Reactor 18603 | -1/Command | Identified Singularity Reactor 18608 | -1/Command | Destroyed by MAIN.C with Improved Heavy Machine Gun Last Messages --------------- 18595_ System corrupted: Matter fused (-7). 18595_ Slug penetrates MAIN.C. 18596_ as-97511 destroyed. 18597_ Slug penetrates MAIN.C. 18598_ C-45 Heavy ARC bursts open, deploying its payload. 18598_ B-74 Champion unfolds itself. 18598_ G-73 Enforcer unfolds itself. 18599_ Cep. RG22 Armor destroyed. 18599_ Knocked back. 18601_ Acquired 2 matter. 18601_ Slug penetrates 0b10 Conduit. 18601_ as-80344 destroyed. 18603_ Acquired Prototype Reactor. 18603_ Identified Singularity Reactor. 18605_ Knocked back. 18606_ Acquired 12 matter. 18606_ Plasma Slug penetrates Reinforced Barrier. 18608_ Plasma Slug penetrates MAIN.C. Map ----- +----------------------------------------------------+ | ?????????????????????????????????????????????????? | | ?????????????????????????????????????????????????? | | ?????????????????????????????????????????????????? | | ?????????????????????????????????????????????????? | | ?????????????????????????????????????????????????? | | ?????????????????????????????????????????????????? | | ?????????????????????????????????????????????????? | | ?????????????????????????????????????????????????? | | ?????????????????????????????????????????????????? | | ?????????????????????????????????????????????????? | | ?????????????????????????????????????????????????? | | ?????????????????????????????????????????????????? | | ?????????????????????????????????????????????????? | | ????????????????#######################??????????? | | ????????????????#""""" " """ #??????????? | | ????????????????#"" " #??????????? | | ????????????????#"""" " ############ | | ????????????????#"""" | | ????????????????#" " %% | | ????????????????#"" """ % = %i | | ????????????????#"" "" % %=%*g g ############ | | ????????????????# " " %!*!b! #??????????? | | ????????????????# % M!!b!!% #??????????? | | ????????????????# % !!x![!%= #??????????? | | ????????????????#""" % %!%%%%!g #??????????? | | ????????????????#" !@= [*[!!] ""#??????????? | | ????????????????# % % x ""#??????????? | | ????????????????# % x "%#??????????? | | ????????????????# %p #??????????? | | ????????????????" #??????????? | | ????????????????" " #??????????? | | ????????????????" " " " " #??????????? | | ????????????????# """""""" " " #??????????? | | ????????????????# " """ " "" "" #??????????? | | ????????????????# """ " " " #??????????? | | ????????????????#######################??????????? | | ?????????????????????????????????????????????????? | | ?????????????????????????????????????????????????? | | ?????????????????????????????????????????????????? | | ?????????????????????????????????????????????????? | | ?????????????????????????????????????????????????? | | ?????????????????????????????????????????????????? | | ?????????????????????????????????????????????????? | | ?????????????????????????????????????????????????? | | ?????????????????????????????????????????????????? | | ?????????????????????????????????????????????????? | | ?????????????????????????????????????????????????? | | ?????????????????????????????????????????????????? | | ?????????????????????????????????????????????????? | | ?????????????????????????????????????????????????? | +----------------------------------------------------+ Best States ------------- Heat Dissipation 88 Energy Generation 89 Energy Capacity 1260 Matter Stores 300 Matter Capacity 300 Sight Range 23 Robot Scan Range 20 Terrain Scan Range 24 Terrain Scan Density 2010 ECM Strength 3 Jamming Range 16 Cloak Strength 9 Armor Coverage 450 Resistance: KI 10 Resistance: TH 10 Resistance: P 20 Core Shielding 30 Propulsion Shielding 66 Point Defense Rating 960 Projectile Deflection 15 Melee Speed Boost 50 Evasion (%) 79 Melee Accuracy 12 Core Analysis 11 Recoil Reduction 2 Offensive Hacking 50 Relay Coupler Types 1 Relay Coupler Value 29 Authchip Count 1 Trap Extractor Capacity 8 Item Schematics ----------------- Hvy. Tesla Rifle | -2/Protoforge | Archive Robot Schematics ------------------ None Fabricated ------------ Enh. Fission Core | x1 | -5/Factory | Preloaded Lrn. Terrain Scanner | x2 | -5/Factory | Authchip Repaired ---------- Lgt. Treads | 27% | -10/Materials Imp. Medium Laser | 31% | -10/Materials Imp. Light Armor Plating | 18% | -6/Factory Nuclear Pulse Thruster | 36% | -6/Factory Adv. Gravity Neutralizer | 48% | -6/Factory | Broken Imp. Datajack | 10% | -6/Factory Nuclear Pulse Array | 31% | -5/Factory Studied --------- None Alien Tech Used ----------------- Dimensional Node Initializer Subatomic Replicator Core Reset Matrix Supercharged TR Concept Nanofilaments [Endoweave] Achievements -------------- None Challenges ------------ None Game ------ Seed DrainedWeldingHoverbase Manual? 0 Play Time 06:23:49 Cumulative 304.8 hours Start 2026.03.22 @ 10:19:49 End 2026.03.23 @ 12:35:48 Sessions 7 Manual Loads 0 Difficulty Rogue Special Mode None Game No. 150 Rogue 150 Adventurer 0 Explorer 0 Win Type - Total 19 Types 7/0/5/1/4/1/0/0/0/1 Lore% 87 Gallery% 74 Achievement% 87 Wizard Run 0 Options --------- Layout 1 ASCII 0 Keyboard 0 Movement Numpad Keybinds 0 Fullscreen 1 Font 24/Smallcaps Map View 50x35 Zoom Use 0% Tactical HUD 1 Map Filters NONE Filters NONE Steam 1 RUN: 2bac7ec8-cc78-4697-94d9-eb2fa333822c